Cogmind - Beta 16.1 @@@ ROGUE MODE // 2026.02.25 @ 04:59:52 Player: AngelSpirit Result: Destroyed by 99-46O(E) with Overtuned Coil Gun Performance ------------- Evolutions (7) 3500 Regions Visited (27) 5400 Robots Destroyed (586) 2930 Value Destroyed (28649) 28649 Prototype IDs (183) 3660 Alien Tech Used (7) 1400 Bonus (27541) 27541 TOTAL SCORE: 73080 Bonus ------- High Alert Combat Kills 10403 Follower Combat Kills 3468 Hunted by Unchained 500 Forged Quantum Companion 2000 Registered with UFD 300 Met Optimus in HQ 500 Met Zhirov 300 Built Enhanced Grunts 300 A7 Reached Mainframe 300 Met R17 at Cetus 500 Found Hidden Lab 3000 Used Core Reset Matrix 3000 Met R17 at Research 2000 Met Sigix 2000 Met Optimus at Protoforge 1000 Friendly Fire -2030 Cogmind --------- Core Integrity 0/1300 Matter 533/1050 Energy 670/670 System Corruption 0% Temperature Cool (0) Movement Hovering (36) Location -3/Protoforge Parts ------- > --- POWER (3) -------- Light Antimatter Reactor Improved Quantum Reactor Improved Quantum Reactor > --- PROPULSION (7) --- Experimental Antigrav System Experimental Antigrav System Gravjet Array Gravjet Array Concept Combat Aerolev Unit > --- UTILITY (10) ----- Concept Antigrav Storage Unit Concept NT7 Matterbank Advanced Gravity Neutralizer Spectral Analyzer Precision Matter Filter Experimental Reaction Control System Advanced Cloaking Device Centrium Medium Armor Plating Centrium Medium Armor Plating Experimental System Purifier > --- WEAPON (2) ------- Concept Smart ZDS Superquantum Companion > --- INVENTORY (25) --- Concept Networked Targeting System Terrabomb Warp Cannon Ragnarok Missile Launcher UFD Drillbomb UFD Drillbomb Peak State ------------ > --- POWER ------------ Light Antimatter Reactor Improved Quantum Reactor Improved Quantum Reactor > --- PROPULSION ------- Experimental Antigrav System Experimental Antigrav System Gravjet Array Gravjet Array Concept Combat Aerolev Unit > --- UTILITY ---------- Concept Antigrav Storage Unit Concept NT7 Matterbank Advanced Gravity Neutralizer Spectral Analyzer Concept Networked Targeting System Precision Matter Filter Experimental Reaction Control System Advanced Cloaking Device Centrium Medium Armor Plating Centrium Medium Armor Plating > --- WEAPON ----------- Concept Smart ZDS Superquantum Companion > --- INVENTORY -------- Experimental Heat Sink Femtoactuators Terrabomb Warp Cannon Ragnarok Missile Launcher UFD Drillbomb UFD Drillbomb [Rating: 249] Favorites ----------- Power Light Antimatter Reactor Engine Heavy Ion Engine Power Core Micro Fission Core Reactor Light Antimatter Reactor Propulsion Antigrav Array Wheel Wheel Hover Unit Antigrav Array Flight Unit Nuclear Pulse Thruster Utility Enhanced Optical Array Device Experimental Sensor Array Storage Large Storage Unit Processor Enhanced Optical Array Hackware Advanced Hacking Suite Protection Medium Regenerative Plating Weapon Companion Sword Energy Gun Dispersion Rifle Energy Cannon Warp Cannon Ballistic Gun Improved Assault Rifle Ballistic Cannon Antimatter Cannon Launcher Concept Smart ZDS Special Weapon Guided Remote Datajack Impact Weapon Shock Maul Slashing Weapon Companion Sword Piercing Weapon Kinetic Spear Build | -11 -10 -10 -9 -9 -9 -9 -6 -6 -6 -6 -6 -6 -5 -5 -5 -5 -5 -5 -4 -4 -4 -4 -4 -4 -3 -3 -3 ------- Run | Yrd Mat Min Mat Sto Rec Scr Fac Was Fac Ext Cet Arc Fac Was Fac Upp Upp Zhi Pro Fac Was Fac Arm Lab Res Qua Frg Slots Evolved 14 | . . . 2 . . . 6 . . . . . 2 . . . . . . 2 . . . . 2 . . Power 1 | . . . . . . . . . . . . . 1 . . . . . . . . . . . . . . Propulsion 5 | . . . 1 . . . 2 . . . . . . . . . . . . 1 . . . . 1 . . Utility 8 | . . . 1 . . . 4 . . . . . 1 . . . . . . 1 . . . . 1 . . Weapon . | . . . . . . . . . . . . . . . . . . . . . . . . . . . . Parts Attached 466 | 7 11 1 25 16 5 1 63 2 14 10 9 . 20 3 15 1 1 6 4 14 3 38 17 5 86 32 57 Power 66 | 1 1 . 2 3 . . 5 . 4 3 1 . 7 . 2 . . 1 3 1 1 3 1 2 10 5 10 Engine 10 | 1 1 . 2 2 . . 3 . . 1 . . . . . . . . . . . . . . . . . Core 22 | . . . . 1 . . 2 . 2 1 . . 7 . 2 . . . 2 . . 3 . 1 . . 1 Reactor 34 | . . . . . . . . . 2 1 1 . . . . . . 1 1 1 1 . 1 1 10 5 9 Propulsion 111 | 2 4 . 7 4 1 . 19 . 2 2 2 . 2 . 6 . . 2 . 5 1 19 7 . 13 4 9 Treads . | . . . . . . . . . . . . . . . . . . . . . . . . . . . . Leg . | . . . . . . . . . . . . . . . . . . . . . . . . . . . . Wheel 22 | 2 4 . 6 4 1 . 5 . . . . . . . . . . . . . . . . . . . . Hover 85 | . . . . . . . 11 . 2 2 2 . 2 . 6 . . 2 . 5 1 19 7 . 13 4 9 Flight 4 | . . . 1 . . . 3 . . . . . . . . . . . . . . . . . . . . Utility 214 | 2 4 1 7 2 2 . 23 2 6 5 2 . 8 3 5 1 . 3 1 7 1 14 9 1 54 19 32 Device 114 | 1 . . 2 . . . 6 1 2 . . . 2 3 3 1 . 2 1 4 1 10 7 1 37 16 14 Storage 17 | 1 3 . . 1 . . 2 . . . . . 2 . . . . . . 2 . . . . 3 . 3 Processor 28 | . . . . . . . 6 . 1 . . . . . 1 . . . . . . 2 . . 9 1 8 Hackware 20 | . . . . . 1 . 6 1 1 1 . . 2 . 1 . . . . 1 . 1 1 . 2 2 . Protection 35 | . 1 1 5 1 1 . 3 . 2 4 2 . 2 . . . . 1 . . . 1 1 . 3 . 7 Artifact . | . . . . . . . . . . . . . . . . . . . . . . . . . . . . Weapon 75 | 2 2 . 9 7 2 1 16 . 2 . 4 . 3 . 2 . 1 . . 1 . 2 . 2 9 4 6 Energy Gun 11 | . . . 1 1 . . 5 . 1 . 1 . . . . . . . . . . 1 . . 1 . . Energy Cannon 9 | . . . . 1 . . 2 . . . . . . . . . . . . 1 . . . 1 3 . 1 Ballistic Gun 16 | 2 1 . 6 3 . . . . 1 . 1 . . . 1 . . . . . . . . . . . 1 Ballistic Cannon 5 | . . . . . 2 . 2 . . . . . . . . . . . . . . . . . . 1 . Launcher 14 | . 1 . 2 1 . . 3 . . . . . . . . . 1 . . . . . . . 3 . 3 Special Weapon 6 | . . . . . . . 1 . . . 2 . 1 . . . . . . . . . . 1 . 1 . Impact Weapon 6 | . . . . . . . 2 . . . . . . . 1 . . . . . . 1 . . 1 1 . Slashing Weapon 6 | . . . . 1 . 1 1 . . . . . 1 . . . . . . . . . . . 1 . 1 Piercing Weapon 2 | . . . . . . . . . . . . . 1 . . . . . . . . . . . . 1 . Special Melee Weapon . | . . . . . . . . . . . . . . . . . . . . . . . . . . . . Unidentified Prototypes 100 | . . . 3 4 . 1 17 1 5 . 5 . 5 . 3 . . 6 1 2 . 3 . 6 9 8 21 Parts Lost 98 | . 5 . 5 5 1 . 19 . 2 2 . . 2 . 1 2 . . 1 2 . 11 10 . 10 7 13 Power 20 | . 1 . 2 1 . . 2 . . . . . 1 . . . . . 1 . . . 2 . 2 3 5 Propulsion 43 | . 3 . 1 4 1 . 12 . 1 1 . . . . . . . . . 2 . 6 5 . 4 . 3 Utility 29 | . . . 2 . . . 3 . 1 1 . . 1 . 1 2 . . . . . 4 2 . 3 4 5 Weapon 6 | . 1 . . . . . 2 . . . . . . . . . . . . . . 1 1 . 1 . . Highest Loss Streak 9 | . 3 . 2 3 1 . 9 . 1 2 . . 2 . 1 2 . . 1 1 . 4 9 . 3 2 4 To Critical Strikes . | . . . . . . . . . . . . . . . . . . . . . . . . . . . . Average Backups 11 | . 7 9 14 16 18 17 14 7 7 7 7 8 7 7 7 6 6 6 8 9 12 13 13 11 13 11 8 Power . | . . . . 1 3 . . . . . 1 1 . . . . . . . 1 1 1 1 1 . . . Propulsion 1 | . 1 3 . 1 2 2 1 . . . . . 1 2 1 2 2 2 1 1 1 1 1 1 . . . Utility 6 | . 5 5 6 7 8 11 7 3 2 2 2 4 3 2 2 1 1 1 2 3 5 7 7 6 9 8 3 Weapon 2 | . . 1 7 6 4 1 1 2 2 2 2 2 2 2 2 2 2 2 2 1 2 1 . 1 1 2 3 Tool/Special . | . . . . . . . . . . . . . . . . . . . . . . . . . . . . Unused Backups 60 | . 1 . 4 4 2 9 11 . 1 1 1 . 1 . 1 . . . . 2 . 3 2 . . 2 15 Power 7 | . 1 . . 2 . 3 . . . . . . . . . . . . . . . 1 . . . . . Propulsion 12 | . . . . . . 4 1 . . . . . 1 . 1 . . . . 1 . . 1 . . . 3 Utility 24 | . . . . . . 2 8 . 1 1 1 . . . . . . . . 1 . 1 1 . . 2 6 Weapon 15 | . . . 4 2 2 . 1 . . . . . . . . . . . . . . 1 . . . . 5 Tool/Special 2 | . . . . . . . 1 . . . . . . . . . . . . . . . . . . . 1 Average Slot Usage (%) 92 | . 98 100 97 95 99 100 91 100 99 99 88 86 87 88 90 93 88 91 91 94 94 92 92 98 80 90 87 Engine 3 | . 13 14 10 9 11 11 3 . . 1 . . . . . . . . . . . . . . . . . Core 3 | . . . . . . . 2 6 4 . 3 . 10 11 11 11 11 7 3 8 5 8 4 4 1 . . Reactor 3 | . . . . . . . . . 1 4 2 6 . . . . . 2 4 1 5 1 4 5 8 11 11 Wheel 8 | . 27 28 32 28 32 33 14 . . . . . . . . . . . . . . . . . . . . Hover 18 | . . . . . . . 12 33 33 33 27 20 17 17 19 23 23 23 23 26 31 30 28 30 19 24 22 Device 11 | . 10 13 10 11 . . 8 13 13 9 6 6 7 7 9 9 . . . 5 5 12 13 14 12 23 22 Storage 6 | . 14 14 11 11 11 11 6 6 6 6 6 6 5 5 5 5 5 5 5 5 5 5 5 5 4 4 7 Processor 10 | . . . . . . . 12 13 17 20 20 20 17 17 17 17 17 17 17 15 15 10 15 15 13 9 5 Hackware 5 | . . . . . 10 11 13 13 3 3 . . 7 5 5 5 5 5 5 8 10 8 7 5 5 2 . Protection 6 | . 3 . 11 11 11 11 2 . 4 6 7 13 5 8 5 5 11 14 16 10 10 6 3 4 3 4 7 Ballistic Gun 5 | . 27 28 21 20 20 19 . . . . . . . . . . . . . . . . . . . . . Impact Weapon 1 | . . . . . . . 2 6 5 4 2 6 4 . 3 4 5 5 4 1 . . . . . 3 1 Slashing Weapon 3 | . . . . 1 . 2 6 6 6 6 5 6 5 5 5 5 5 5 4 5 5 5 5 5 4 4 3 Peak Build Rating 249 | 7 8 9 23 24 26 31 86 83 84 85 106 104 115 115 115 103 98 110 117 130 124 126 124 141 162 169 249 Average Rating 102 | 5 7 8 17 22 25 27 64 81 82 80 89 104 108 112 105 101 97 103 112 125 120 118 114 129 145 156 218 On Entrance 83 | . 7 8 9 23 24 26 31 82 83 84 83 104 104 115 114 102 97 97 110 115 122 119 120 119 141 155 157 Avg Prop Armor Cover (%) 2 | . . . . . . . 3 . . . . . . . . . . . . . . 2 . . . 2 1 Naked Turns . | . . . . . . . . . . . . . . . . . . . . . . . . . . . . Heaviest Build 123 | 14 49 46 62 63 65 63 117 29 47 45 45 45 61 59 59 53 50 56 59 65 60 66 66 64 85 97 123 Greatest Support 128 | 26 26 20 34 38 44 44 64 44 49 54 65 65 65 61 61 56 56 58 58 85 66 76 75 74 104 104 128 Greatest Overweight (x) 10 | . 4 2 2 5 2 1 10 . 1 . . . . . . . . . 1 1 . 1 . . 1 1 1 Average Overweight (x) . | . 1 2 1 1 1 1 . . . . . . . . . . . . . . . . . . . . . Largest Inventory Capacity 25 | 8 20 20 20 20 20 20 25 10 10 10 10 10 10 10 10 10 10 10 10 15 15 15 15 15 15 15 25 Average Capacity 15 | 7 17 20 20 20 20 20 18 10 10 10 10 10 10 10 10 10 10 10 10 13 15 15 15 15 15 15 22 Most Carried 25 | 1 10 12 20 20 20 20 25 10 10 10 10 10 10 10 10 10 10 10 10 12 15 15 15 15 15 15 25 Average Carried 14 | . 7 10 15 17 19 19 16 10 9 9 9 10 9 9 9 9 9 9 9 10 13 14 14 12 14 13 20 Final Capacity 25 | 8 20 20 20 20 20 20 10 10 10 10 10 10 10 10 10 10 10 10 10 15 15 15 15 15 15 15 25 Final Carried 24 | 1 8 12 16 20 20 20 10 10 10 10 10 10 10 9 10 9 9 10 10 11 15 15 15 15 15 15 24 Class Distribution -------------------- 28% | Scavenger-Mutant 18% | Mutant 9% | Scavenger-Scout 6% | Scout 4% | Hacker-Gladiator 4% | Trapper-Mutant 3% | Alien-Gladiator 3% | Hacker-Mutant 3% | Scavenger-Gladiator Dominant Class ---------------- Mutant | -10/Materials Scavenger-Mutant | -10/Mines Mutant | -9/Materials Mutant | -9/Storage Mutant | -9/Recycling Mutant | -9/Scraptown Hacker-Gladiator | -6/Factory Hacker-Gladiator | -6/Waste Scout | -6/Factory Scout | -6/Extension Commander-Scout | -6/Cetus Commander-Scout | -6/Archives Scavenger-Scout | -5/Factory Scavenger-Scout | -5/Waste Scavenger-Scout | -5/Factory Trapper-Scout | -5/Upper Caves Trapper-Mutant | -5/Upper Caves Trapper-Mutant | -5/Zhirov Trapper-Mutant | -4/Proximity Caves Scavenger-Mutant | -4/Factory Scavenger-Mutant | -4/Waste Scavenger-Mutant | -4/Factory Scavenger-Mutant | -4/Armory Scavenger-Mutant | -4/Lab Alien-Scout | -3/Research Alien-Gladiator | -3/Quarantine Scavenger-Mutant | -3/Protoforge Resources | -11 -10 -10 -9 -9 -9 -9 -6 -6 -6 -6 -6 -6 -5 -5 -5 -5 -5 -5 -4 -4 -4 -4 -4 -4 -3 -3 -3 ----------- Run | Yrd Mat Min Mat Sto Rec Scr Fac Was Fac Ext Cet Arc Fac Was Fac Upp Upp Zhi Pro Fac Was Fac Arm Lab Res Qua Frg Matter Collected 19291 | 236 713 46 735 817 233 10 1282 . 421 263 160 . 492 91 350 170 20 60 127 235 30 712 312 . 1190 385 10201 Remotely . | . . . . . . . . . . . . . . . . . . . . . . . . . . . . Salvage Created 21351 | 41 932 28 1101 1586 235 . 2682 . 1147 1155 70 33 1505 . 1049 317 . 216 461 889 289 1790 991 . 2759 356 1719 Parts 963 | 4 62 3 72 106 12 . 115 . 30 35 14 3 65 . 38 15 . 5 18 50 7 76 52 . 107 10 64 Haulers Intercepted 44 | . 2 . 4 6 . . 6 . 5 . . . 5 . 2 . . . 1 3 . 4 . . 6 . . Recyclers Shooed 6 | . . . . 2 . . 1 . . . . . 1 . . . . . . 2 . . . . . . . Parts Field Recycled . | . . . . . . . . . . . . . . . . . . . . . . . . . . . . Retrieved Matter . | . . . . . . . . . . . . . . . . . . . . . . . . . . . . Parts Self-Destructed 70 | . . . . . . . . . . . . . . . . 14 . 2 54 . . . . . . . . Prevented . | . . . . . . . . . . . . . . . . . . . . . . . . . . . . Parts Restored 1 | . . . . . . . . . . . . . . . . . . . . . . . . . . . 1 Faulty 1 | . . . . . . . . . . . . . . . . . . . . . . . . . . . 1 Kills | -11 -10 -10 -9 -9 -9 -9 -6 -6 -6 -6 -6 -6 -5 -5 -5 -5 -5 -5 -4 -4 -4 -4 -4 -4 -3 -3 -3 ------- Run | Yrd Mat Min Mat Sto Rec Scr Fac Was Fac Ext Cet Arc Fac Was Fac Upp Upp Zhi Pro Fac Was Fac Arm Lab Res Qua Frg Combat Hostiles Destroyed 428 | . 19 2 19 22 4 . 34 . 14 14 . . 20 . 11 9 . . 5 11 1 12 21 . 34 8 168 Melee 115 | . . . . . . . 24 . 6 8 . . 12 . 7 3 . . 3 4 . 10 7 . 17 1 13 Guns 49 | . 16 2 12 17 2 . . . . . . . . . . . . . . . . . . . . . . Cannons 27 | . . . . . 2 . 2 . . 3 . . . . . . . . 2 2 1 1 6 . 4 . 4 AOE 214 | . 3 . 7 5 . . 6 . 7 . . . 7 . 3 6 . . . 5 . . 8 . 12 . 145 Classes Destroyed 28 | 1 8 . 2 . . . 2 . . 1 . . . . 1 1 . . . 2 1 . 2 . . 1 6 Worker 20 | . 1 . . 3 . . 5 . . 1 . . 3 . 1 . . . . 1 . 3 . . 1 . 1 Builder 13 | . 1 . . 2 . . 4 . 1 . . . 1 . 3 . . . . . . 1 . . . . . Tunneler 4 | 2 . . . . . . 1 . . . . . . . . . . . . . . 1 . . . . . Hauler 44 | . 2 . 4 6 . . 6 . 5 . . . 5 . 2 . . . 1 3 . 4 . . 6 . . Recycler 15 | . 2 . 1 2 1 . 3 . 1 1 . . 1 . 1 . . . . . . 1 . . 1 . . Minesweeper 2 | . . . . . . . . . . . . . . . . 2 . . . . . . . . . . . Mechanic 5 | . . . . . . . . . . . . . . . . . . . . 1 . . . . . . 4 Operator 17 | . 2 . . 2 . . . . . 2 . 1 1 . 1 . . . . . . 2 1 . 1 . 4 Drone 11 | . . . . . . . . . . . . . . . . . . . . . . . . . . . 11 Watcher 37 | . 3 . 5 2 . . 2 . 2 1 . . . . 1 . . . . 2 . 7 4 . 2 . 6 Swarmer 93 | . 6 2 3 . . . 4 . 9 . . . 7 . 3 6 . . 1 . . . 12 . 14 . 26 Cutter 7 | . . . . . . . . . . . . . . . . . . . . 4 . . . . . . 3 Saboteur 6 | . . . . . . . . . . . . . . . . . . . . . . . 1 . . . 5 Grunt 120 | . 13 . 7 11 . . 16 . 2 11 . . 7 . 4 1 . . 4 1 . 3 2 . 11 . 27 Brawler 8 | . . . . . . . . . . . . . . . 1 . . . . . . . . . . . 7 Duelist 14 | . . . 2 1 . . 1 . . . . . . . . . . . . . . . . . . . 10 Protector 10 | . . . . . . . . . . . . . . . . . . . . . . . . . . . 10 Sentry 47 | . . . 7 10 4 . 4 . 3 2 . . 1 . 3 1 . . . 2 . 3 1 . 4 . 2 Specialist 3 | . . . . . . . . . . . . . . . . . . . . . . . 2 . . . 1 Hunter 28 | . . . . . . . 3 . . . . . 1 . . . . . . . . 1 . . 3 . 20 Programmer 34 | . . . . . . . 6 . . . . . 4 . . 1 . . . 4 . 5 3 . . . 11 Behemoth 4 | . . . . . . . . . . 1 . . . . . . . . . . . . . . 2 . 1 Compactor 1 | . . . . . . . . . . . . . . . . . . . . . 1 . . . . . . Quarantine Guard 7 | . . . . . . . . . . . . . . . . . . . . . . . . . . 7 . Hotshot 1 | . . . . . . . . . . . . . . . . . . . . . . . . . . . 1 Decapitator 4 | . . . . . . . . . . . . . . . . . . . . . . . . . . . 4 Immortal 2 | . . . . . . . . . . . . . . . . . . . . . . . . . . . 2 Striker 9 | . . . . . . . . . . . . . . . . . . . . . . . . . . . 9 Executioner 14 | . . . . . . . . . . . . . . . . . . . . . . . . . . . 14 Fortress 1 | . . . . . . . . . . . . . . . . . . . . . . . . . . 1 . V-Series 4 | . . . . . . . . . . . . . . . . . . . . . . . . . . . 4 Scrapoid 3 | . . . . . . . . . . . . . . . . . . . . . . . . . . . 3 Best Kill Streak 20 | 2 6 2 6 6 2 . 14 . 5 4 . 1 8 . 7 4 . . 3 6 1 4 6 . 7 2 20 Combat Bots Only 20 | . 3 2 5 4 2 . 9 . 4 3 . . 4 . 5 4 . . 2 5 1 3 6 . 6 2 20 Max Kills in Single Turn 7 | 1 2 1 2 3 1 . 3 . 2 1 1 1 4 . 4 3 . . 1 4 1 1 5 . 5 1 7 Gunslinging 1 | . . . . 1 . . . . . . . . . . . . . . . . . . . . . . . Exploded 6 | . 2 . 2 2 . . 3 . 2 . . . 3 . 1 3 . . . 3 . . 5 . 5 . 6 Melee 1 | . . . . . . . 1 . 1 1 . . 1 . 1 1 . . 1 1 . 1 1 . 1 1 1 Uniques/NPCs Destroyed 1 | . . . . . . . . . . . 1 . . . . . . . . . . . . . . . . A7 (-6/Cetus) Combat | -11 -10 -10 -9 -9 -9 -9 -6 -6 -6 -6 -6 -6 -5 -5 -5 -5 -5 -5 -4 -4 -4 -4 -4 -4 -3 -3 -3 -------- Run | Yrd Mat Min Mat Sto Rec Scr Fac Was Fac Ext Cet Arc Fac Was Fac Upp Upp Zhi Pro Fac Was Fac Arm Lab Res Qua Frg Hostile Shots Fired 2213 | . 85 8 82 76 38 . 271 . 147 107 1 . 153 . 49 22 . . 29 78 . 125 493 . 145 60 244 Missed 949 | . 22 6 26 23 11 . 92 . 52 42 . . 58 . 20 9 . . 8 28 . 53 323 . 41 33 102 Deflected 13 | . . . . . . . . . . . . . . . . . . . . 1 . 2 3 . 4 . 3 Hits 1264 | . 63 2 56 53 27 . 179 . 95 65 1 . 95 . 29 13 . . 21 50 . 72 170 . 104 27 142 Melee 27 | . . . 4 . . . 1 . . . . . . . . . . . . 2 . . . . . . 20 Projectile 1237 | . 63 2 52 53 27 . 178 . 95 65 1 . 95 . 29 13 . . 21 48 . 72 170 . 104 27 122 AOE 15 | . . . . . . . . . . . . . 2 . 3 . . . . . . 2 1 . . . 7 Critical Strikes 56 | . . . . 2 2 . 2 . 1 2 1 . 5 . 1 1 . . 1 2 . 6 3 . 3 5 19 Actively Blocked 21 | . . . . . . . . . . . . . . . . . . . . . . 1 . . . 1 19 Part Disruptions 2 | . . . . . . . . . . . . . . . . . . . . . . 2 . . . . . Actively Blocked 1 | . . . . . . . . . . . . . . . . . . . . . . 1 . . . . . Damage Taken 23534 | . 771 15 804 796 407 . 2537 . 719 899 50 . 1963 . 546 262 . . 436 1213 . 2181 2303 . 2531 1007 4094 Core 3778 | . 226 . 141 122 29 . 481 . 148 192 27 . 300 . 10 25 . . 27 196 . 260 340 . 422 76 756 Absorbed by Shields 1912 | . . . 4 . . . 37 . 298 121 . . 249 . 200 55 . . . . . . . . . 38 910 Redirected to Shielding 152 | . . . . . . . . . . . . . . . . . . . . . . 152 . . . . . Ignored by Resistances 195 | . . . . . . . . . . . . . 39 . . . . . . . . . . . . 156 . Regen/Repaired (Parts) 4256 | . . . . . . . . . 24 . 98 186 502 420 196 62 11 . 127 106 23 949 85 326 502 348 291 Core Remaining (%) 37 | 100 . 9 . . . 27 . . . . . . . . . . . . 63 . . . . 27 . . . Volleys Fired 593 | 7 102 3 71 91 25 . 41 . 4 23 6 . 6 . 18 6 . . . 7 . 6 4 . 13 17 143 Largest 2 | 2 2 2 2 2 2 . 1 . 1 1 1 . 1 . 1 1 . . . 1 . 1 1 . 1 1 1 Hottest 300 | 40 40 40 46 46 66 . 36 . 43 90 30 . 90 . 90 43 . . . 90 . 43 43 . 52 100 300 Shots Fired 868 | 14 198 6 135 173 50 . 42 . 4 23 6 . 6 . 18 6 . . . 7 . 6 4 . 13 17 140 Gun 536 | 14 192 6 128 164 32 . . . . . . . . . . . . . . . . . . . . . . Cannon 129 | . . . . . 18 . 36 . . 23 5 . 2 . 14 . . . . 4 . 5 . . . 13 9 Launcher 191 | . 6 . 7 9 . . 5 . 4 . . . 3 . 4 6 . . . 3 . 1 4 . 5 3 131 Special 12 | . . . . . . . 1 . . . 1 . 1 . . . . . . . . . . . 8 1 . Kinetic 590 | 14 192 6 128 164 50 . 36 . . . . . . . . . . . . . . . . . . . . Thermal 75 | . . . . . . . . . . 23 5 . 2 . 14 . . . . 4 . 5 . . . 13 9 Explosive 191 | . 6 . 7 9 . . 5 . 4 . . . 3 . 4 6 . . . 3 . 1 4 . 5 3 131 Electromagnetic . | . . . . . . . . . . . . . . . . . . . . . . . . . . . . Robot Hit Streak 16 | 3 14 4 14 16 16 . 11 . . 12 4 . 7 . 13 1 . . . 1 . . 2 . 8 . 13 Robot Miss Streak 4 | 1 3 1 4 3 2 . 3 . . 3 3 . . . . 2 . . . 3 . . . . 1 2 1 Penetration Max . | . . . . . . . . . . . . . . . . . . . . . . . . . . . . Secondary Targets 7 | . 4 1 1 1 . . . . . . . . . . . . . . . . . . . . . . . Max Gunslinging Chain 1 | . 1 1 1 1 . . . . . . . . . . . . . . . . . . . . . . . Autonomous 40 | . . . . . . . . . . . . . . . . . . . 3 3 2 4 12 . 7 . 9 Shots Hit Robots 1059 | 9 117 4 90 128 39 . 118 . 39 54 4 2 72 . 41 6 . 5 8 33 . 77 32 . 76 28 77 Core Hits 705 | 3 55 2 48 60 9 . 59 . 27 19 2 1 38 . 24 13 . 3 6 22 1 25 23 . 47 4 214 Critical Kills 6 | . 1 1 . . . . . . 1 . . . . . . . . . . . . . . . . 1 2 Critical Parts Destroyed 24 | 1 1 . 1 . . . 6 . 4 3 . . 1 . . . . . . . . . . . . 4 3 Critical Strikes 44 | 1 2 1 1 1 . . 9 . 7 3 . . 3 . 2 . . . . . . . 2 . . 5 7 Meltdown 3 | . . . . . . . . . . . . . . . . . . . . . . . . . . 1 2 Destroy 6 | 1 2 1 1 1 . . . . . . . . . . . . . . . . . . . . . . . Blast 3 | . . . . . . . 3 . . . . . . . . . . . . . . . . . . . . Smash 22 | . . . . . . . 6 . 5 3 . . 1 . . . . . . . . . . . . 4 3 Melee Attacks 916 | . . . . 6 . . 117 . 77 43 . 2 95 . 64 8 . 5 10 52 . 144 59 5 95 41 93 Impact 118 | . . . . . . . 12 . 23 7 . . 16 . 13 . . . . . . . . . . 28 19 Slashing 795 | . . . . 6 . . 105 . 54 36 . 2 77 . 50 8 . 5 10 52 . 144 59 5 95 13 74 Piercing 3 | . . . . . . . . . . . . . 2 . 1 . . . . . . . . . . . . Sneak Attacks 106 | . . . . 1 . . 22 . 10 9 . 2 9 . 7 3 . . 1 6 . 12 3 . 13 2 6 Combat Hostiles 27 | . . . . . . . 5 . 2 7 . . 1 . 2 1 . . . . . . 2 . 4 2 1 Follow-up Attacks 33 | . . . . . . . 3 . 6 8 . . 9 . 3 . . . . 1 . . . . 1 . 2 Damage Inflicted 113266 | 108 1497 35 1928 2664 679 . 6616 . 2758 2658 82 178 4381 . 2441 965 . 431 871 3447 168 6037 4176 . 7673 1903 61570 Guns 4813 | 108 1117 35 1236 1908 409 . . . . . . . . . . . . . . . . . . . . . . Cannons 6151 | . . . . . 270 . 999 . . 604 82 . . . 137 . . . 259 275 168 314 1050 . 610 278 1105 Explosions 64096 | . 380 . 692 673 . . 807 . 580 . . . 695 . 505 570 . . . 810 . . 690 . 1782 . 55912 Melee 38206 | . . . . 83 . . 4810 . 2178 2054 . 178 3686 . 1799 395 . 431 612 2362 . 5723 2436 . 5281 1625 4553 Ramming . | . . . . . . . . . . . . . . . . . . . . . . . . . . . . Kinetic 6082 | 108 1117 35 1236 1908 679 . 999 . . . . . . . . . . . . . . . . . . . . Thermal 1448 | . . . . . . . . . . 604 82 . . . 137 . . . . . . . . . . 278 347 Explosive 63978 | . 380 . 692 673 . . 807 . 524 . . . 633 . 505 570 . . . 810 . . 690 . 1782 . 55912 Electromagnetic 118 | . . . . . . . . . 56 . . . 62 . . . . . . . . . . . . . . Impact 4444 | . . . . . . . 758 . 696 403 . . 727 . 307 . . . . . . . . . . 1086 467 Slashing 33693 | . . . . 83 . . 4052 . 1482 1651 . 178 2890 . 1492 395 . 431 612 2362 . 5723 2436 . 5281 539 4086 Piercing 69 | . . . . . . . . . . . . . 69 . . . . . . . . . . . . . . Phasic 3434 | . . . . . . . . . . . . . . . . . . . 259 275 168 314 1050 . 610 . 758 Highest Corruption 13 | . . . . . . . 2 6 7 4 . . 5 5 . 1 1 1 1 2 10 13 4 . . . 12 Average Corruption 5 | . . . . . . . 1 5 6 2 . . 3 2 . 1 1 1 1 1 7 8 2 . . . 10 Corruption Purged 51 | . . . . . . . 2 . 2 5 . . . 5 . . . . . . . 21 4 . . . 12 Corruption Blocked 4 | . . . . . . . 4 . . . . . . . . . . . . . . . . . . . . Effects 258 | . . . . . . . 15 1 27 1 . . 14 1 . . 2 . 6 6 2 63 16 . . . 104 Message Errors 46 | . . . . . . . 4 . 4 . . . 2 1 . . . . . 1 . 10 3 . . . 21 Matter Fused 65 | . . . . . . . 5 . 9 . . . 5 . . . . . 3 . . 15 2 . . . 26 Heat Flow Errors 32 | . . . . . . . 1 . 4 . . . 2 . . . 1 . 1 2 . 7 1 . . . 13 Energy Discharges 29 | . . . . . . . 3 . 2 . . . . . . . . . 1 . 1 8 4 . . . 10 Parts Rejected 3 | . . . . . . . . 1 1 . . . . . . . . . . . . . . . . . 1 Parts Fused 3 | . . . . . . . . . . . . . . . . . 1 . . . . . . . . . 2 Data Loss (minor) 36 | . . . . . . . 1 . 3 1 . . 2 . . . . . 1 2 1 10 4 . . . 11 Data Loss (major) 21 | . . . . . . . . . 2 . . . 3 . . . . . . 1 . 8 1 . . . 6 Misfires 2 | . . . . . . . 1 . . . . . . . . . . . . . . . . . . . 1 Alerts 8 | . . . . . . . . . 2 . . . . . . . . . . . . 2 1 . . . 3 Misdirections 9 | . . . . . . . . . . . . . . . . . . . . . . 3 . . . . 6 Weapon Failures 4 | . . . . . . . . . . . . . . . . . . . . . . . . . . . 4 Overload Shots 7 | . . . . . . . . . . 2 . . 1 . 1 . . . . 3 . . . . . . . Overflow Damage 14408 | . . . 28 41 . . 1212 . 463 407 . 37 510 . 199 4 . 108 16 345 . 1069 297 . 422 210 9040 Projectiles 418 | . . . . . . . 39 . . . . . . . 40 . . . 16 . . 83 156 . 5 . 79 Explosions 8546 | . . . 28 41 . . 97 . . . . . 17 . 14 4 . . . 7 . . 19 . 351 . 7968 Melee 5444 | . . . . . . . 1076 . 463 407 . 37 493 . 145 . . 108 . 338 . 986 122 . 66 210 993 Knockbacks 17 | . . . . . . . 8 . 3 2 . . 2 . . . . . . . . . . . . . 2 Impact 12 | . . . . . . . 4 . 2 2 . . 2 . . . . . . . . . . . . . 2 Kinetic 4 | . . . . . . . 4 . . . . . . . . . . . . . . . . . . . . Secondary 1 | . . . . . . . . . 1 . . . . . . . . . . . . . . . . . . Self-Inflicted Damage 1094 | . 70 . 24 13 . . 172 . . . . . . . . 68 . . . 101 . . 43 . 140 . 463 Shots 21 | . 2 . 1 1 . . 5 . . . . . . . . 1 . . . 2 . . 1 . 2 . 6 Rammed . | . . . . . . . . . . . . . . . . . . . . . . . . . . . . Targets Rammed . | . . . . . . . . . . . . . . . . . . . . . . . . . . . . Kicked . | . . . . . . . . . . . . . . . . . . . . . . . . . . . . Crushed . | . . . . . . . . . . . . . . . . . . . . . . . . . . . . Highest Temperature 378 | . 22 4 14 45 198 . 185 . 236 378 . . 326 . 78 49 233 1 282 145 42 235 168 109 332 358 245 Average Temperature 66 | . 5 2 5 14 63 . 61 . 106 184 . . 81 . 20 13 25 1 109 33 22 93 8 28 88 91 99 Received Heat Transfer 4597 | . 306 . 246 339 153 . 792 . 140 542 . . 435 . 83 21 . . 132 108 . 267 153 . 754 . 126 Effects 7 | . . . . . . . . . . . . . 1 . . . . . . . . . . . 4 2 . Energy Bleed 3 | . . . . . . . . . . . . . 1 . . . . . . . . . . . 1 1 . Interference 3 | . . . . . . . . . . . . . . . . . . . . . . . . . 3 . . Short Circuit 1 | . . . . . . . . . . . . . . . . . . . . . . . . . . 1 . Siege Activations . | . . . . . . . . . . . . . . . . . . . . . . . . . . . . Martial Activations . | . . . . . . . . . . . . . . . . . . . . . . . . . . . . Shielding Activations . | . . . . . . . . . . . . . . . . . . . . . . . . . . . . Robots Disrupted 8 | . . . . . . . 1 . 2 . . . 1 . . . . . . 1 . 1 1 . . . 1 Combat Hostiles 6 | . . . . . . . 1 . 2 . . . 1 . . . . . . . . . 1 . . . 1 Robots Corrupted 24 | . . . . . . . 4 . 4 2 . . 4 . 1 . . . . . . . . . . 5 4 Combat Hostiles 13 | . . . . . . . 2 . 1 2 . . 1 . . . . . . . . . . . . 5 2 Parts Fried 37 | . . . . . . . 7 . 7 2 . . 5 . 1 . . . . . . . . . . 8 7 Impact Corruptions 60 | . . . . . . . 17 . 11 6 . . 8 . 1 . . . . . . . . . . 9 8 Robots Melted 5 | . . . . . . . . . . 1 . . . . 1 . . . . . . . . . . 1 2 Combat Hostiles 5 | . . . . . . . . . . 1 . . . . 1 . . . . . . . . . . 1 2 Parts Melted 12 | . . . . . . . . . . 3 . . . . 1 . . . . . . . 1 . . . 7 Heat Transferred 1530 | . . . . . . . . . . 729 111 . . . 185 . . . . . . . . . . 228 277 Parts Sabotaged . | . . . . . . . . . . . . . . . . . . . . . . . . . . . . Parts Stolen . | . . . . . . . . . . . . . . . . . . . . . . . . . . . . Parts Stripped 34 | . . . . . . . . . . . . . . . . . . . . . . 7 . . 12 . 15 Power Chain Reactions . | . . . . . . . . . . . . . . . . . . . . . . . . . . . . Alert | -11 -10 -10 -9 -9 -9 -9 -6 -6 -6 -6 -6 -6 -5 -5 -5 -5 -5 -5 -4 -4 -4 -4 -4 -4 -3 -3 -3 ------- Run | Yrd Mat Min Mat Sto Rec Scr Fac Was Fac Ext Cet Arc Fac Was Fac Upp Upp Zhi Pro Fac Was Fac Arm Lab Res Qua Frg Maximum Alert Level 5 | . 1 . 1 2 1 . 1 . 1 1 1 1 5 2 4 . . . . 1 . 2 2 . 3 2 5 Low Security (%) 41 | 100 71 100 83 2 61 . 95 100 86 14 17 71 4 . . . . . . 94 100 84 5 . 24 . 13 Level 1 25 | . 28 . 16 37 38 . 4 . 13 85 82 28 12 . 3 . . . . 5 . 10 29 . 34 70 4 Level 2 16 | . . . . 59 . . . . . . . . 9 100 12 . . . . . . 5 65 . 27 29 25 Level 3 5 | . . . . . . . . . . . . . 10 . 82 . . . . . . . . . 12 . 4 Level 4 2 | . . . . . . . . . . . . . 27 . . . . . . . . . . . . . 8 Level 5 7 | . . . . . . . . . . . . . 35 . . . . . . . . . . . . . 43 High Security . | . . . . . . . . . . . . . . . . . . . . . . . . . . . . Max Security . | . . . . . . . . . . . . . . . . . . . . . . . . . . . . Peak Influence 4239 | 5 355 151 291 521 274 . 242 37 267 358 346 243 1840 644 1104 . . . . 246 63 476 686 . 854 484 4239 Initial 644 | . . 131 . 122 191 . . 37 . 127 156 95 28 644 338 . . . . 10 48 30 231 . . 462 123 Average 459 | . 163 34 118 418 184 . 72 20 106 269 250 160 1177 563 882 . . . . 48 50 103 478 . 369 347 1438 Influence Increases 21306 | 10 814 110 753 847 368 . 1450 . 993 701 300 188 2630 . 1526 270 . 10 115 493 15 1583 997 . 1476 702 4955 Destroy 0b10 Robot/C 9760 | . 380 40 380 440 80 . 700 . 280 420 160 80 1020 . 520 180 . . 100 220 . 460 460 . 680 180 2980 Destroy 0b10 Robot/NC 945 | 10 55 . 50 85 5 . 105 . 45 40 10 5 70 . 60 10 . 10 5 35 . 95 25 . 55 . 170 Destroy Leader 2036 | . 100 10 128 176 . . 186 . 64 52 . . 222 . 120 20 . . 10 60 . 152 88 . 126 80 442 Allied During Kill 1535 | . . . . . . . 5 . 5 105 114 85 762 . 312 . . . . . . 85 29 . . 33 . Trap Triggered on 0b10 50 | . . . . . . . . . . . . . . . . . . . . . . . . . . 50 . Successful Hack 686 | . 54 . 40 36 27 . 56 . 120 50 . . 55 . 12 . . . . 22 . 123 17 . 60 14 . Select Force Hacks 420 | . 60 . . 30 240 . 60 . . . . . . . . . . . . . . . . . 30 . . Disable Machine 870 | . . . 15 30 15 . 30 . 45 . 15 15 75 . 15 . . . . . . 45 105 . 15 105 345 Anti-Garrison Action 350 | . . . . . . . . . . . . . . . 200 . . . . . . . . . . . 150 Destroy Structure 1509 | . 30 . 50 50 1 . 38 . 44 4 1 3 146 . 112 . . . . 96 . 148 78 . 150 110 448 Partial Spotted 390 | . . . . . . . . . 75 15 . . 15 . 15 . . . . 60 15 75 . . 60 30 30 Lose Combat Pursuer 2355 | . 135 60 90 . . . 270 . 315 15 . . 165 . 60 60 . . . . . 300 195 . 300 . 390 Miscellaneous 400 | . . . . . . . . . . . . . 100 . 100 . . . . . . 100 . . . 100 . Influence Decreases 17067 | 10 477 447 462 647 762 97 1343 107 732 682 342 343 873 1356 966 685 290 349 98 372 110 1152 785 686 654 1303 937 Entered New Map 4983 | . . 206 . 169 300 97 . 70 . 134 124 143 55 1196 146 387 120 339 . 7 90 13 243 686 . 360 98 Time Decay 8590 | 10 427 241 412 428 452 . 584 37 394 368 198 180 548 160 440 278 170 10 98 195 20 575 422 . 531 703 709 Lost Part 938 | . 50 . 50 50 10 . 187 . 18 20 . . 20 . 10 20 . . . 20 . 110 100 . 73 70 130 Lost Ally 1000 | . . . . . . . 170 . 20 160 20 20 100 . 370 . . . . . . 50 20 . 50 20 . Purge Threat 1556 | . . . . . . . 402 . 300 . . . 150 . . . . . . 150 . 404 . . . 150 . Squads Dispatched 162 | . 5 . 3 3 . . 17 . 14 4 . . 21 . 20 . . . . 7 . 26 7 . 18 2 15 Investigation 89 | . 4 . 1 2 . . 9 . 9 1 . . 11 . 9 . . . . 1 . 17 3 . 16 2 4 Extermination 23 | . . . . . . . 5 . 3 . . . 3 . 1 . . . . 1 . 5 2 . . . 3 Reinforcement 39 | . 1 . 2 1 . . 3 . 2 3 . . 4 . 4 . . . . 5 . 4 2 . 2 . 6 Assault 9 | . . . . . . . . . . . . . 2 . 5 . . . . . . . . . . . 2 Garrison 2 | . . . . . . . . . . . . . 1 . 1 . . . . . . . . . . . . Intercept . | . . . . . . . . . . . . . . . . . . . . . . . . . . . . Searches Triggered . | . . . . . . . . . . . . . . . . . . . . . . . . . . . . Construction Impeded 5 | . . . . . . . 1 . 1 1 . . . . 1 . . . . 1 . . . . . . . Haulers Reinforced 8 | . . . . . . . . . . . . . 2 . 1 . . . . 2 . 2 . . 1 . . Active Scanning Responses . | . . . . . . . . . . . . . . . . . . . . . . . . . . . . Cargo Convoy Interrupts 1 | . . . . . . . 1 . . . . . . . . . . . . . . . . . . . . Stealth | -11 -10 -10 -9 -9 -9 -9 -6 -6 -6 -6 -6 -6 -5 -5 -5 -5 -5 -5 -4 -4 -4 -4 -4 -4 -3 -3 -3 --------- Run | Yrd Mat Min Mat Sto Rec Scr Fac Was Fac Ext Cet Arc Fac Was Fac Upp Upp Zhi Pro Fac Was Fac Arm Lab Res Qua Frg Distress Signals 42 | . . . 4 4 . . 3 . 3 1 2 . 5 . . . . . . 1 . 3 2 . 4 . 10 Communications Jammed 30 | . . . . . . . . . . . . . . . . . . . . . . . . . . . 30 Distress Signals 30 | . . . . . . . . . . . . . . . . . . . . . . . . . . . 30 Times Spotted 756 | . 32 6 34 25 4 . 70 6 36 23 9 2 55 . 30 13 . . 15 32 6 57 57 . 58 13 173 Peak Tracking Total 19 | . 5 3 7 4 2 . 10 6 16 5 5 1 7 . 5 7 . . 5 10 5 8 19 . 10 2 13 Tactical Retreats 75 | . 4 2 4 . . . 9 . 6 1 . . 6 . 2 2 . . . 4 . 10 4 . 5 . 16 ECM-based Alert Blocks 15 | . . . . . . . . . . . . . . . . . . . . 13 . 2 . . . . . Traps | -11 -10 -10 -9 -9 -9 -9 -6 -6 -6 -6 -6 -6 -5 -5 -5 -5 -5 -5 -4 -4 -4 -4 -4 -4 -3 -3 -3 ------- Run | Yrd Mat Min Mat Sto Rec Scr Fac Was Fac Ext Cet Arc Fac Was Fac Upp Upp Zhi Pro Fac Was Fac Arm Lab Res Qua Frg Traps Triggered 30 | . 2 . . 2 . . 3 . 3 1 . . 5 . 3 . . . . 1 . 5 . . 3 . 2 Indirectly . | . . . . . . . . . . . . . . . . . . . . . . . . . . . . Trap Hack Attempts . | . . . . . . . . . . . . . . . . . . . . . . . . . . . . Triggered . | . . . . . . . . . . . . . . . . . . . . . . . . . . . . Disarmed . | . . . . . . . . . . . . . . . . . . . . . . . . . . . . Reprogrammed . | . . . . . . . . . . . . . . . . . . . . . . . . . . . . Reused 5 | . . . . . . . . . . . . . . . . . . . . . . . . . . 5 . Traps Extracted . | . . . . . . . . . . . . . . . . . . . . . . . . . . . . Installed 7 | . . . . . . . . . . . . . . . . . . . 1 . . . . . . 6 . Triggered 5 | . . . . . . . . . . . . . . . . . . . . . . . . . . 5 . Most Traps Carried 7 | . . . . . . 1 1 1 1 1 1 1 1 1 1 7 7 7 7 7 7 7 7 7 7 7 1 Machines | -11 -10 -10 -9 -9 -9 -9 -6 -6 -6 -6 -6 -6 -5 -5 -5 -5 -5 -5 -4 -4 -4 -4 -4 -4 -3 -3 -3 ---------- Run | Yrd Mat Min Mat Sto Rec Scr Fac Was Fac Ext Cet Arc Fac Was Fac Upp Upp Zhi Pro Fac Was Fac Arm Lab Res Qua Frg Machines Disabled 62 | . . . 1 2 1 . 2 . 3 . 1 1 5 . 1 . . . . . . 4 7 1 1 7 25 Max in Single Turn 4 | . . . 1 1 1 . 1 . 2 . 1 . 4 . 1 . . . . . . 1 1 1 1 1 3 Garrison Access 11 | . . . . . . . 1 . 1 . . . 1 . 2 . . . . 1 . 3 . . 1 . 1 Energy Cycler 1 | . . . . . . . . . . . . . . . . . . . . . . . 1 . . . . Machines Repaired . | . . . . . . . . . . . . . . . . . . . . . . . . . . . . Machines Dismantled 1 | . . . . . . . . . . . 1 . . . . . . . . . . . . . . . . Machines Sabotaged . | . . . . . . . . . . . . . . . . . . . . . . . . . . . . Overloaded Fab Kills . | . . . . . . . . . . . . . . . . . . . . . . . . . . . . Hacking | -11 -10 -10 -9 -9 -9 -9 -6 -6 -6 -6 -6 -6 -5 -5 -5 -5 -5 -5 -4 -4 -4 -4 -4 -4 -3 -3 -3 --------- Run | Yrd Mat Min Mat Sto Rec Scr Fac Was Fac Ext Cet Arc Fac Was Fac Upp Upp Zhi Pro Fac Was Fac Arm Lab Res Qua Frg Machines Accessed 241 | . 10 2 8 8 14 3 25 . 26 9 . . 19 . 21 1 1 4 1 7 . 38 7 . 17 12 8 Terminals 123 | . 7 1 8 7 6 . 11 . 12 9 . . 11 . 8 . . . 1 5 . 16 4 . 3 10 4 Fabricators 23 | . . . . . . . 4 . 4 . . . 2 . 2 . . . . . . 5 2 . 4 . . Repair Stations 5 | . 1 . . . . . . . 2 . . . . . . . . . . . . 2 . . . . . Recycling Units 51 | . 2 . . 1 8 . 6 . 5 . . . 5 . 7 . . . . . . 8 1 . 5 . 3 Scanalyzers 17 | . . . . . . . 3 . 1 . . . . . 2 . . . . 1 . 4 . . 4 2 . Garrison Access 12 | . . . . . . . 1 . 2 . . . 1 . 2 . . . . 1 . 3 . . 1 . 1 Total Hacks 660 | . 27 4 26 26 40 5 105 . 78 23 . . 50 . 39 1 1 17 6 23 . 91 15 . 40 31 12 Successful 406 | . 19 2 13 12 29 5 84 . 36 10 . . 23 . 18 1 1 17 6 14 . 62 10 . 27 12 5 Failed 251 | . 8 2 13 14 11 . 20 . 42 13 . . 27 . 21 . . . . 9 . 28 5 . 12 19 7 Catastrophic 37 | . 1 . 3 1 1 . . . 10 . . . 7 . 4 . . . . 1 . 3 . . . 5 1 Database Lockouts 3 | . . . . . . . 1 . . . . . . . . . . . . . . 1 . . 1 . . Manual 323 | . 20 . 20 21 26 . 47 . 42 17 1 . 17 . 19 . . . . 8 . 36 8 . 20 13 8 Terminals 383 | . 19 3 26 24 21 . 48 . 49 23 . . 36 . 15 . . . 6 18 . 45 10 . 10 25 5 Fabricators 67 | . . . . . . . 18 . 12 . . . 8 . 2 . . . . . . 12 4 . 11 . . Repair Stations 13 | . 5 . . . . . . . 3 . . . . . . . . . . . . 5 . . . . . Recycling Units 90 | . 3 . . 2 19 . 12 . 8 . . . 5 . 13 . . . . . . 13 1 . 9 . 5 Scanalyzers 61 | . . . . . . . 24 . 3 . . . . . 6 . . . . 3 . 10 . . 9 6 . Garrison Access 21 | . . . . . . . 3 . 3 . . . 1 . 3 . . . . 2 . 6 . . 1 . 2 Terminal Hacks 160 | . 2 2 8 4 3 5 24 . 10 6 . . 11 . 5 1 1 17 6 9 . 26 7 . 5 6 2 Record 15 | . . . . . . 3 . . . . . . . . . . . 5 6 . . . . . . 1 . Part Schematic 6 | . . . 1 . . . . . 1 . . . . . . . . 4 . . . . . . . . . Robot Schematic 1 | . . . . . 1 . . . . . . . . . . . . . . . . . . . . . . Robot Analysis 14 | . 1 . 3 . . . 1 . . 4 . . . . . . . 4 . . . . 1 . . . . Prototype ID Bank 9 | . . . . 1 2 . 2 . . . . . . . . . . 4 . . . . . . . . . Open Door 8 | . . 1 . 1 . 1 . . . 2 . . . . . 1 1 . . . . . . . . 1 . Branch Access Points 6 | . . . . 1 . . 1 . 1 . . . 1 . . . . . . . . 1 . . 1 . . Emergency Access Points 8 | . . . 1 . . . 3 . 1 . . . . . 1 . . . . 1 . . 1 . . . . Machine Index 1 | . . . . . . . . . . . . . . . . . . . . . . . . . 1 . . Terminal Index 7 | . . . 1 1 . . 1 . 1 . . . 1 . . . . . . . . 1 . . 1 . . Fabricator Index 1 | . . . . . . . . . 1 . . . . . . . . . . . . . . . . . . Recycling Unit Index 1 | . . . . . . . 1 . . . . . . . . . . . . . . . . . . . . Scanalyzer Index 1 | . . . . . . . . . . . . . . . . . . . . . . . . . 1 . . Alert Level 12 | . . . . . . . 3 . 1 . . . 1 . . . . . . 1 . 2 2 . . 2 . Unreport Threat 17 | . . . . . . . 4 . 2 . . . 2 . 1 . . . . 1 . 5 . . . 2 . Locate Traps 20 | . 1 . 2 . . . 3 . 1 . . . 2 . 2 . . . . 3 . 4 2 . . . . Recall Investigation 2 | . . . . . . . . . . . . . . . . . . . . . . 1 . . . . 1 Recall Extermination 1 | . . . . . . . . . . . . . . . . . . . . . . 1 . . . . . Recall Reinforcements 2 | . . . . . . . 1 . . . . . . . . . . . . . . 1 . . . . . Hauler Manifests 3 | . . . . . . . 2 . . . . . 1 . . . . . . . . . . . . . . Registered Components 6 | . . . . . . . 1 . 1 . . . 1 . . . . . . 1 . 1 . . 1 . . Registered Prototypes 3 | . . . . . . . . . . . . . 1 . . . . . . 1 . 1 . . . . . Zone Layout 14 | . . 1 . . . . 1 . . . . . 1 . 1 . . . . 1 . 8 1 . . . . Proto ID Catalog 2 | . . . . . . 1 . . . . . . . . . . . . . . . . . . . . 1 Fabricator Hacks 29 | . . . . . . . 8 . 5 . . . 3 . . . . . . . . 6 2 . 5 . . Network Status 7 | . . . . . . . 2 . 1 . . . 1 . . . . . . . . 1 1 . 1 . . Load Schematic 12 | . . . . . . . 3 . 2 . . . 1 . . . . . . . . 3 1 . 2 . . Build 10 | . . . . . . . 3 . 2 . . . 1 . . . . . . . . 2 . . 2 . . Repair Station Hacks 9 | . 3 . . . . . . . 2 . . . . . . . . . . . . 4 . . . . . Scan Component 3 | . . . . . . . . . 1 . . . . . . . . . . . . 2 . . . . . Repair 3 | . . . . . . . . . 1 . . . . . . . . . . . . 2 . . . . . Refit 3 | . 3 . . . . . . . . . . . . . . . . . . . . . . . . . . Recycling Unit Hacks 17 | . 1 . . 1 8 . 3 . . . . . . . 2 . . . . . . 1 . . 1 . . Retrieve Components 17 | . 1 . . 1 8 . 3 . . . . . . . 2 . . . . . . 1 . . 1 . . Scanalyzer 46 | . . . . . . . 23 . 2 . . . . . 3 . . . . 3 . 6 . . 4 5 . Insert Component 16 | . . . . . . . 11 . . . . . . . . . . . . 2 . 2 . . 1 . . Analyze 12 | . . . . . . . 10 . . . . . . . . . . . . . . 1 . . 1 . . Retrieve Study 18 | . . . . . . . 2 . 2 . . . . . 3 . . . . 1 . 3 . . 2 5 . Garrison Access Hacks 9 | . . . . . . . 1 . 1 . . . 1 . 1 . . . . 1 . 3 . . 1 . . Seal Access 9 | . . . . . . . 1 . 1 . . . 1 . 1 . . . . 1 . 3 . . 1 . . Unauthorized Hacks 135 | . 13 . 5 6 18 . 25 . 16 4 . . 8 . 7 . . . . 1 . 16 1 . 11 1 3 Terminals 73 | . 11 . 5 5 10 . 15 . 11 4 . . 1 . . . . . . 1 . 6 . . 2 1 1 Track 3 | . . . . . . . 1 . 1 . . . . . . . . . . . . . . . . . 1 Assimilate 3 | . . . . . . . 1 . . . . . . . . . . . . . . . . . 2 . . Botnet 33 | . 4 . . 1 5 . 7 . 4 4 . . 1 . . . . . . 1 . 5 . . . 1 . Disrupt 1 | . . . . . . . 1 . . . . . . . . . . . . . . . . . . . . Operators 1 | . 1 . . . . . . . . . . . . . . . . . . . . . . . . . . Skim 32 | . 6 . 5 4 5 . 5 . 6 . . . . . . . . . . . . 1 . . . . . Fabricators 13 | . . . . . . . 4 . 1 . . . 2 . . . . . . . . 3 . . 3 . . Prioritize 7 | . . . . . . . 2 . . . . . 1 . . . . . . . . 3 . . 1 . . Liberate 1 | . . . . . . . . . . . . . . . . . . . . . . . . . 1 . . Haulers 4 | . . . . . . . 1 . 1 . . . 1 . . . . . . . . . . . 1 . . Recompile 1 | . . . . . . . 1 . . . . . . . . . . . . . . . . . . . . Repair Stations . | . . . . . . . . . . . . . . . . . . . . . . . . . . . . Recycling Units 47 | . 2 . . 1 8 . 6 . 4 . . . 5 . 6 . . . . . . 7 1 . 5 . 2 Tunnel 13 | . 2 . . 1 8 . 2 . . . . . . . . . . . . . . . . . . . . Fedlink 33 | . . . . . . . 4 . 4 . . . 5 . 6 . . . . . . 6 1 . 5 . 2 Scrapoids 1 | . . . . . . . . . . . . . . . . . . . . . . 1 . . . . . Scanalyzers 1 | . . . . . . . . . . . . . . . . . . . . . . . . . 1 . . Extract 1 | . . . . . . . . . . . . . . . . . . . . . . . . . 1 . . Garrison Access 1 | . . . . . . . . . . . . . . . 1 . . . . . . . . . . . . Jam 1 | . . . . . . . . . . . . . . . 1 . . . . . . . . . . . . Data Cores Recovered 5 | . 1 . . . . . . . . . . . 1 . . . . . . . . 2 1 . . . . Used 2 | . . . . . . . . . . . . . 1 . . . . . . . . 1 . . . . . Hacking Detections 171 | . 8 1 7 6 8 . 20 . 19 8 1 . 13 . 16 . . . 1 5 . 28 5 . 13 8 4 Full Trace Events 25 | . . . 2 . . . 1 . 4 . . . 3 . 2 . . . . . . 5 1 . 5 1 1 Feedback Events 3 | . . . . . . . . . 1 . . . . . . . . . . . . 1 . . 1 . . Corruption 2 | . . . . . . . . . 1 . . . . . . . . . . . . 1 . . . . . Hackware Fried 1 | . . . . . . . . . . . . . . . . . . . . . . . . . 1 . . Feedback Blocked . | . . . . . . . . . . . . . . . . . . . . . . . . . . . . Robot Schematics Acquired 5 | . . . . . 1 . . . . . . . . . . . . . . . . . . . . 4 . Robots Built 2 | . . . . . . . 2 . . . . . . . . . . . . . . . . . . . . Authchips . | . . . . . . . . . . . . . . . . . . . . . . . . . . . . Time 152 | . . . . . . . 152 . . . . . . . . . . . . . . . . . . . . Total Robot Build Rating 10 | . . . . . . . 10 . . . . . . . . . . . . . . . . . . . . Part Schematics Acquired 36 | . . . 1 . . . 9 . 1 . . . . . . . . 4 . . . 1 . . 5 15 . Parts Built 13 | . . . . . . . 2 . 3 . . . 2 . . . . . . . . 4 . . 2 . . Authchips 2 | . . . . . . . 1 . 1 . . . . . . . . . . . . . . . . . . Time 430 | . . . . . . . 140 . 126 . . . 47 . . . . . . . . 57 . . 60 . . Total Part Build Rating 70 | . . . . . . . 11 . 15 . . . 10 . . . . . . . . 28 . . 6 . . Part Studies Acquired 18 | . . . . . . . 2 . 2 . . . . . 3 . . . . 1 . 3 . . 2 5 . Parts Repaired 3 | . . . . . . . . . 1 . . . . . . . . . . . . 2 . . . . . Time 142 | . . . . . . . . . 54 . . . . . . . . . . . . 88 . . . . . Parts Recycled . | . . . . . . . . . . . . . . . . . . . . . . . . . . . . Recycled Matter . | . . . . . . . . . . . . . . . . . . . . . . . . . . . . Retrieved Matter . | . . . . . . . . . . . . . . . . . . . . . . . . . . . . Retrieved Components 63 | . 3 . . 10 19 . 22 . . . . . . . 3 . . . . . . 4 . . 2 . . Parts Scanalyzed 10 | . . . . . . . 9 . . . . . . . . . . . . . . 1 . . . . . Part Schematics Acquired 11 | . . . . . . . 9 . . . . . . . . . . . . . . 1 . . 1 . . Parts Damaged . | . . . . . . . . . . . . . . . . . . . . . . . . . . . . Bothacking | -11 -10 -10 -9 -9 -9 -9 -6 -6 -6 -6 -6 -6 -5 -5 -5 -5 -5 -5 -4 -4 -4 -4 -4 -4 -3 -3 -3 ------------ Run | Yrd Mat Min Mat Sto Rec Scr Fac Was Fac Ext Cet Arc Fac Was Fac Upp Upp Zhi Pro Fac Was Fac Arm Lab Res Qua Frg Used RIF Installer . | . . . . . . . . . . . . . . . . . . . . . . . . . . . . Robots Hacked 9 | . . . . . . . 1 . . . . . 1 . . . . . . . . . . . 7 . . Non-combat 4 | . . . . . . . 1 . . . . . 1 . . . . . . . . . . . 2 . . Combat 5 | . . . . . . . . . . . . . . . . . . . . . . . . . 5 . . Robot Hacks Applied 9 | . . . . . . . 1 . . . . . 1 . . . . . . . . . . . 7 . . parse_system 7 | . . . . . . . . . . . . . . . . . . . . . . . . . 7 . . find_chute 2 | . . . . . . . 1 . . . . . 1 . . . . . . . . . . . . . . Relay Couplers Released . | . . . . . . . . . . . . . . . . . . . . . . . . . . . . Fabnet Peak Effective % . | . . . . . . . . . . . . . . . . . . . . . . . . . . . . Robots Rewired 15 | . . . . . . . 1 . 1 9 . . 1 . . . . . . . . 1 . . . 2 . Allies Hacked 1 | . . . . . . . 1 . . . . . . . . . . . . . . . . . . . . Hacks Repelled . | . . . . . . . . . . . . . . . . . . . . . . . . . . . . Allies | -11 -10 -10 -9 -9 -9 -9 -6 -6 -6 -6 -6 -6 -5 -5 -5 -5 -5 -5 -4 -4 -4 -4 -4 -4 -3 -3 -3 -------- Run | Yrd Mat Min Mat Sto Rec Scr Fac Was Fac Ext Cet Arc Fac Was Fac Upp Upp Zhi Pro Fac Was Fac Arm Lab Res Qua Frg Total Allies 53 | . . . . . . . 4 . 1 12 5 . 1 20 . . . . . . . 6 . . 2 2 . Largest Group 20 | . . . . . . . 3 . 1 5 8 7 6 20 20 . . . . . . 5 1 . 2 1 . Highest-Rated Group 771 | . . . . . . . 54 . 29 277 675 536 508 771 771 . . . . . . 235 47 . 55 145 . Highest-Rated Ally 159 | . . . . . . . 32 . 29 159 159 96 96 50 50 . . . . . . 47 47 . 45 145 . Initial UFD Resources 131 | . . . . . . . 24 42 42 50 50 50 53 73 73 85 85 85 87 87 87 87 106 108 111 131 131 Total Orders 25 | . . . . . . . 6 . . . 4 4 . . . . . . . . . . 2 . 2 7 . STAY 11 | . . . . . . . 3 . . . 2 1 . . . . . . . . . . 1 . . 4 . ROAM 1 | . . . . . . . . . . . . 1 . . . . . . . . . . . . . . . FOLLOW 11 | . . . . . . . 3 . . . 2 2 . . . . . . . . . . 1 . . 3 . EXPLORE 2 | . . . . . . . . . . . . . . . . . . . . . . . . . 2 . . Ally Attacks 615 | . . . . . . . 7 . 5 95 74 23 144 . 150 . . . . . . 67 25 . . 25 . Total Damage 16992 | . . . . . . . 145 . 89 1966 1770 751 5098 . 3769 . . . . . . 1508 480 . . 1416 . Kills 92 | . . . . . . . 1 . . 10 10 4 34 . 19 . . . . . . 11 2 . . 1 . Allies Corrupted 1 | . . . . . . . . . . . . . 1 . . . . . . . . . . . . . . Allies Melted 3 | . . . . . . . . . . . . . . . . . . . . . . . . . . . 3 Intel | -11 -10 -10 -9 -9 -9 -9 -6 -6 -6 -6 -6 -6 -5 -5 -5 -5 -5 -5 -4 -4 -4 -4 -4 -4 -3 -3 -3 ------- Run | Yrd Mat Min Mat Sto Rec Scr Fac Was Fac Ext Cet Arc Fac Was Fac Upp Upp Zhi Pro Fac Was Fac Arm Lab Res Qua Frg Active Infowar (turns) 27149 | 7 888 950 956 1056 22 . 2458 82 958 852 405 377 1588 339 1090 618 350 99 541 437 47 2111 1031 1832 1835 3046 3174 Optics 20442 | . . . . . . . . . 684 852 405 377 1588 339 1090 618 350 99 541 437 47 2111 1031 1832 1821 3046 3174 Sensors 9996 | . . . . . . . 2458 82 953 698 405 377 1470 339 1067 549 . . . . . 238 347 3 1010 . . Terrain 2760 | . . . . . . . . . . . . . . . . . . . . 204 . . 139 9 1217 796 395 Seismic 3881 | 7 888 950 956 1056 22 . . . . . . . . . . . . . . . . . . . 2 . . Triangulation 2 | . . . . . . . . . . . . . . . . . . . . . . . . . 2 . . Cloaking 5044 | . . . . . . . . . . . . . . . . . . . . . . . 543 4 394 1270 2833 Jamming 608 | . . . . . . . . . . . . . . . . . . . . 59 . . . . 40 131 378 ECM 286 | . . . . . . . . . . . . . . . . . . . . 96 5 185 . . . . . Robot Analysis Total 14 | . 1 . 3 . . . 1 . . 4 . . . . . . . 4 . . . . 1 . . . . Derelict Logs Recovered 7 | . . 2 . . . . . . . . . . . . . 1 2 . 2 . . . . . . . . Drone Launches 21 | . . . . . . . 16 . . . . . . . . . . . . . . . . . 5 . . Drone Recoveries 2 | . . . . . . . . . . . . . . . . . . . . . . . . . 2 . . Exploration | -11 -10 -10 -9 -9 -9 -9 -6 -6 -6 -6 -6 -6 -5 -5 -5 -5 -5 -5 -4 -4 -4 -4 -4 -4 -3 -3 -3 ------------- Run | Yrd Mat Min Mat Sto Rec Scr Fac Was Fac Ext Cet Arc Fac Was Fac Upp Upp Zhi Pro Fac Was Fac Arm Lab Res Qua Frg Turns Passed 30704 | 81 1104 961 1039 1056 1122 1699 2816 85 969 852 405 377 1588 339 1090 618 350 99 541 437 47 2111 1031 1832 1835 3046 3174 Spaces Moved 33018 | 57 635 652 697 610 594 1489 2852 179 1781 745 419 56 1849 267 1725 1056 656 166 871 723 114 3127 1268 572 2370 3498 3990 Core 2 | 2 . . . . . . . . . . . . . . . . . . . . . . . . . . . Treads . | . . . . . . . . . . . . . . . . . . . . . . . . . . . . Legs . | . . . . . . . . . . . . . . . . . . . . . . . . . . . . Wheels 5942 | 55 635 652 697 610 594 1489 1210 . . . . . . . . . . . . . . . . . . . . Hover 27074 | . . . . . . . 1642 179 1781 745 419 56 1849 267 1725 1056 656 166 871 723 114 3127 1268 572 2370 3498 3990 Flight . | . . . . . . . . . . . . . . . . . . . . . . . . . . . . Fastest Speed 18 | 50 90 110 95 101 105 111 22 34 34 40 49 58 48 48 38 40 40 38 38 18 28 22 45 49 44 44 32 Average Speed 56 | 88 106 110 97 108 111 111 67 34 34 44 54 58 55 48 43 40 40 39 40 32 28 38 51 49 53 57 38 Slowest Speed 225 | 90 145 110 110 165 125 111 225 34 88 49 58 58 58 48 48 40 40 40 95 92 28 112 74 53 133 107 106 Overloaded Moves 122 | . . . . . . . 9 . . . . . . . . . . . . 54 . 23 . . . . 36 Propulsion Burnouts . | . . . . . . . . . . . . . . . . . . . . . . . . . . . . Robots Hopped . | . . . . . . . . . . . . . . . . . . . . . . . . . . . . Potential Cave-ins 4 | . . . . . . . . . . . . . . . 4 . . . . . . . . . . . . Cave-ins Triggered 1 | . . . . . . . . . . . . . . . . . . . . . . 1 . . . . . Teleports 2 | . . . . . . . . . . . . . . . . . . . . . . . 1 . 1 . . Exploration Rate (%) 74 | 3 89 85 65 90 98 89 60 92 66 90 85 71 54 90 54 91 72 61 83 21 91 72 68 94 74 99 71 Regions Visited 27 Branch Regions 15 Pre-discovered Areas 27 | . 3 1 . 2 11 1 3 . 1 . . . . . . . 1 3 1 . . . . . . . . Known Exits Taken 16 | . . 1 1 1 . . . . 1 1 1 1 . . 1 1 1 1 1 . . 1 1 1 1 . . Unknown Exits Taken 5 | 1 1 . . . 1 1 . . . . . . . . . . . . . . . . . . . 1 . Scrap Searched 16 | . . 1 . . . 6 . . . . . . . . . 4 3 . 2 . . . . . . . . Spaces Dug 299 | . 5 . . 2 . . 13 . 18 . . . 14 . 23 20 . . . 29 . 54 7 . 53 52 9 Terrain Destroyed 987 | . 28 . 44 48 . . 36 . 55 . . . 41 . 52 94 . . . 49 . 69 41 . 73 52 305 Melee 163 | . . . . 2 . . 13 . 18 . . . 12 . 16 3 . . . 14 . 50 7 . 15 4 9 Projectile 31 | . . . . . . . 10 . . . . . 2 . 7 . . . . 3 . 4 . . . . 5 AOE 793 | . 28 . 44 46 . . 13 . 37 . . . 27 . 29 91 . . . 32 . 15 34 . 58 48 291 Terrain Rammed . | . . . . . . . . . . . . . . . . . . . . . . . . . . . . Walls Destroyed . | . . . . . . . . . . . . . . . . . . . . . . . . . . . . Machines Disabled . | . . . . . . . . . . . . . . . . . . . . . . . . . . . . Actions | -11 -10 -10 -9 -9 -9 -9 -6 -6 -6 -6 -6 -6 -5 -5 -5 -5 -5 -5 -4 -4 -4 -4 -4 -4 -3 -3 -3 --------- Run | Yrd Mat Min Mat Sto Rec Scr Fac Was Fac Ext Cet Arc Fac Was Fac Upp Upp Zhi Pro Fac Was Fac Arm Lab Res Qua Frg Total 43242 | 71 884 890 922 820 1000 1541 3545 201 2023 1190 570 397 2274 476 1952 1229 742 190 1047 859 127 3867 1596 2111 2822 4442 5454 Wait 7000 | . 98 231 72 58 362 19 364 17 114 282 108 340 253 199 95 153 83 . 147 36 . 460 214 1504 113 760 918 Move 32994 | 56 634 651 696 609 593 1488 2852 178 1780 744 418 55 1849 266 1724 1055 655 165 870 723 113 3126 1267 571 2369 3497 3990 Hop . | . . . . . . . . . . . . . . . . . . . . . . . . . . . . Pick Up 230 | 1 9 3 26 14 6 15 23 . 6 3 3 . 6 2 6 . 1 4 2 7 4 16 9 9 8 12 35 Fast Attach 365 | 7 3 . 5 10 1 . 45 3 10 7 9 . 20 . 11 . . 6 6 10 2 32 12 3 88 34 41 Attach 120 | . 5 . 10 2 . 1 19 . 4 2 . . 4 1 3 1 . . . 4 . 11 6 7 12 10 18 Detach 107 | . 4 . . 1 . . 10 . 1 . . . 1 . . . . . 1 2 1 4 2 1 9 4 66 Swap 299 | . 22 2 18 14 7 2 27 1 14 16 5 . 20 5 16 6 2 3 2 6 4 16 11 5 24 18 33 Drop 485 | . 7 . 24 15 6 15 53 2 16 11 13 . 22 3 16 . 1 7 7 13 3 29 12 6 90 38 76 Fire 593 | 7 102 3 71 91 25 . 41 . 4 23 6 . 6 . 18 6 . . . 7 . 6 4 . 13 17 143 Melee 856 | . . . . 6 . . 109 . 62 34 . 2 83 . 52 8 . 5 10 51 . 144 59 5 94 41 91 Ram . | . . . . . . . . . . . . . . . . . . . . . . . . . . . . Kick . | . . . . . . . . . . . . . . . . . . . . . . . . . . . . Crush . | . . . . . . . . . . . . . . . . . . . . . . . . . . . . Escape Stasis 45 | . . . . . . . . . . 8 . . . . 11 . . . . . . 11 . . 2 . 13 Rewire 102 | . . . . . . 1 2 . 12 60 . . 10 . . . . . . . . 12 . . . 5 . Trap 7 | . . . . . . . . . . . . . . . . . . . 1 . . . . . . 6 . Miscellaneous 39 | . . . . . . . . . . . 8 . . . . . . . 1 . . . . . . . 30 Route ------- -11/Scrapyard -10/Materials (discovered 6 exits: *Mat x3 / *Min x2 / Sub) -10/Mines (discovered 3 exits: *Mat x2 / Sub) -9/Materials (discovered 4 exits: *Mat x2 / *Min / *Sto) -9/Storage (discovered 2 exits: *Mat / *Rec) -9/Recycling (discovered 2 exits: [*Fac] / *Scr) -9/Scraptown (discovered 2 exits: *Fac x2) -6/Factory (discovered 7 exits: *Fac x3 / *Low x2 / Ext x2) -6/Waste -6/Factory (discovered 7 exits: *Fac x3 / *Low x2 / *Ext x2) -6/Extension (discovered 2 exits: *Fac / *Cet) -6/Cetus (discovered 2 exits: *Fac / *Arc) -6/Archives (discovered 3 exits: *Fac / *Hub x2) -5/Factory (discovered 5 exits: *Fac x3 / *Upp x2) -5/Waste -5/Factory (discovered 4 exits: *Fac x3 / *Upp) -5/Upper Caves -5/Upper Caves (discovered 2 exits: *Fac / *Zhi) -5/Zhirov -4/Proximity Caves -4/Factory (discovered 4 exits: Res x2 / Upp / Arm) -4/Waste -4/Factory (discovered 6 exits: *Res x3 / *Upp x2 / *Arm) -4/Armory -4/Lab -3/Research (discovered 4 exits: *Res x2 / *Qua x2) -3/Quarantine (discovered 3 exits: *Res / [*Sec] / *Frg) -3/Protoforge (discovered 1 exit: *Res) History --------- Turn | Location | Event 28 | -11/Scrapyard | Discovered new exit (range 16) 82 | -11/Scrapyard | Entered Materials 159 | -10/Materials | Discovered new exit (range 16) 329 | -10/Materials | Build established: Mutant 374 | -10/Materials | Discovered new exit (range 14) 499 | -10/Materials | Core integrity fell below 50% 656 | -10/Materials | Lost 3 parts (1p1n1w) 766 | -10/Materials | Discovered new exit (range 16) 873 | -10/Materials | Learned Storage security intel 936 | -10/Materials | Identified exit to Materials 936 | -10/Materials | Identified exit to Subcaves 959 | -10/Materials | Discovered exit to Materials (range 16) 1084 | -10/Materials | Core integrity fell below 20% 1108 | -10/Materials | Learned location of 2 exits from Materials 1165 | -10/Materials | Learned location of 2 exits from Mines 1186 | -10/Materials | Entered Mines 1425 | -10/Mines | Build established: Scavenger-Mutant 1575 | -10/Mines | Learned Materials trap positions 1611 | -10/Mines | Received a Rocket Launcher from a helpful Derelict 1644 | -10/Mines | Found the Drone Emporium 1649 | -10/Mines | Found Prototype Device 1719 | -10/Mines | Learned location of Zion (-6) 2147 | -10/Mines | Entered Materials 2147 | -9/Materials | Evolved 2 slots: Propulsion x1, Utility x1 2148 | -9/Materials | Identified exit to Mines 2149 | -9/Materials | Identified exit to Materials 2149 | -9/Materials | Identified exit to Storage 2150 | -9/Materials | Loaded intel: 14 trap records 2422 | -9/Materials | Discovered exit to Materials (range 16) 2473 | -9/Materials | Build established: Mutant 3181 | -9/Materials | Learned Materials trap positions 3186 | -9/Materials | Entered Storage 3383 | -9/Storage | Identified exit to Recycling 3585 | -9/Storage | Core integrity fell below 50% 3715 | -9/Storage | Lost 3 parts (1p2n) 3879 | -9/Storage | Learned location of Armory (-4) 3884 | -9/Storage | Discovered exit to Materials (range 6) 4132 | -9/Storage | Used back door to open Recycling access 4242 | -9/Storage | Entered Recycling 4550 | -9/Recycling | Discovered new exit (range 5) 4926 | -9/Recycling | Learned 2 Materials zone layouts 4986 | -9/Recycling | Scanned before Scraplab entrance 4994 | -9/Recycling | Learned Materials security intel 5001 | -9/Recycling | Entered Scraplab 5011 | -9/Recycling | Discovered new exit (range 3) 5054 | -9/Recycling | Learned Materials non-interactive machine intel 5104 | -9/Recycling | Learned location of 2 exits from Materials 5142 | -9/Recycling | Learned 2 Materials zone layouts 5298 | -9/Recycling | Learned Storage trap positions 5354 | -9/Recycling | Learned Materials trap positions 5364 | -9/Recycling | Entered Scraptown 5594 | -9/Scraptown | Discovered new exit (range 11) 5670 | -9/Scraptown | Visited Assassins FH 5685 | -9/Scraptown | Heard Great Nut preacher, LISTEN AND RECITE! 5692 | -9/Scraptown | Visited Red Mages 5771 | -9/Scraptown | Visited Bundlers 5848 | -9/Scraptown | Visited Comm Corps 5887 | -9/Scraptown | Visited TADAMA 5910 | -9/Scraptown | Visited IN-MT5's Study 5919 | -9/Scraptown | Visited Cave Peace 6134 | -9/Scraptown | Visited UFD Registry 6134 | -9/Scraptown | Registered with UFD as "Alphamind" 6180 | -9/Scraptown | Visited Sword Containment 6195 | -9/Scraptown | Visited Science Guys 6332 | -9/Scraptown | Visited Observation Area 6358 | -9/Scraptown | Visited Derelict Rescue Squad 6389 | -9/Scraptown | Found DRS Beacon 6411 | -9/Scraptown | Visited Infowarlord's Domain 6418 | -9/Scraptown | Found Exp. Sensor Array 6435 | -9/Scraptown | Visited Junk Repository 6475 | -9/Scraptown | Visited Chapter 10 6502 | -9/Scraptown | Visited Scrap Suit Storage 6533 | -9/Scraptown | Visited Scrapoid Research Area 6601 | -9/Scraptown | Found Prototype Slashing Weapon 6602 | -9/Scraptown | Identified Companion Sword 7003 | -9/Scraptown | Met Optimus 7003 | -9/Scraptown | Accepted into 0bPrime 7058 | -9/Scraptown | Discovered new exit (range 3) 7063 | -9/Scraptown | Entered Factory 7063 | -6/Factory | Evolved 6 slots: Propulsion x2, Utility x4 7488 | -6/Factory | Discovered new exit (range 6) 7515 | -6/Factory | Identified exit to Lower Caves 7659 | -6/Factory | Build established: Scavenger-Mutant 8065 | -6/Factory | Identified Decoy Drone Bay 8065 | -6/Factory | Central database locked down 8065 | -6/Factory | Watched by a mysterious "MATRIX" hacker. 8302 | -6/Factory | Identified exit to Extension 8499 | -6/Factory | Discovered new exit (range 14) 8749 | -6/Factory | Core integrity fell below 50% 8769 | -6/Factory | Destroyed 9 combat bots 8779 | -6/Factory | Lost 9 parts (1p4n2u2w) 8780 | -6/Factory | Discovered new exit (range 17) 8831 | -6/Factory | Lost 8 allies 8834 | -6/Factory | Identified exit to Factory 8957 | -6/Factory | Loaded intel: 7 recycling unit locations 9043 | -6/Factory | Discovered exit to Factory (range 8) 9089 | -6/Factory | Fabricated Aerolev Unit (x1) 9122 | -6/Factory | Build established: Hacker-Gladiator 9151 | -6/Factory | Learned location of Protoforge (-3) 9194 | -6/Factory | Found Prototype Processor 9194 | -6/Factory | Identified Exp. Targeting Computer 9252 | -6/Factory | Fabricated E-15 Imp (x2) 9484 | -6/Factory | Fabricated Exp. Sensor Array (x1) 9608 | -6/Factory | Cargo convoy interrupted 9634 | -6/Factory | Loaded intel: 95 trap records 9669 | -6/Factory | Learned 4 Lower Caves zone layouts 9693 | -6/Factory | Learned location of 1 exit from Lower Caves 9703 | -6/Factory | Found Prototype Launcher 9703 | -6/Factory | Identified Tactical Quantum Warhead 9708 | -6/Factory | Learned location of 2 exits from Archives 9712 | -6/Factory | Learned location of 2 exits from Lower Caves 9714 | -6/Factory | Found PL-3XN's Ring of Power 9879 | -6/Factory | Sucked down chute 9879 | -6/Factory | Entered Waste 9884 | -6/Waste | Spotted C-40 Crusher 9891 | -6/Waste | Spotted C-40 Crusher 9892 | -6/Waste | Spotted C-40 Crusher 9892 | -6/Waste | Spotted C-40 Crusher 9894 | -6/Waste | EMP discharged 9894 | -6/Waste | Spotted C-40 Crusher 9901 | -6/Waste | Spotted C-40 Crusher 9953 | -6/Waste | Discovered new exit (range 12) 9962 | -6/Waste | Identified exit to Factory 9964 | -6/Waste | Entered Factory 10243 | -6/Factory | Repaired Exp. Sensor Array 10285 | -6/Factory | Learned Extension trap positions 10338 | -6/Factory | Learned Extension security intel 10340 | -6/Factory | Discovered exit to Factory (range 13) 10381 | -6/Factory | Learned Hub_04(d) trap positions 10412 | -6/Factory | Learned Hub_04(d) trap positions 10434 | -6/Factory | Learned location of 1 exit from Extension 10466 | -6/Factory | Learned location of 2 exits from Archives 10496 | -6/Factory | Learned location of Proximity Caves (-4) 10534 | -6/Factory | Learned Hub_04(d) emergency access door positions 10538 | -6/Factory | Build established: Scout 10539 | -6/Factory | Fabricated Imp. Hacking Suite? 10547 | -6/Factory | Loaded intel: 8 recycling unit locations 10652 | -6/Factory | Targeted by mysterious "MATRIX" hacker. 10683 | -6/Factory | Fabricated Imp. System Restoration Module (x2) 10721 | -6/Factory | Discovered exit to Factory (range 22) 10933 | -6/Factory | Entered Extension 10935 | -6/Extension | Loaded intel: 29 trap records 11035 | -6/Extension | Core integrity fell below 20% 11082 | -6/Extension | Rescued a captive Derelict 11083 | -6/Extension | Rescued a captive Derelict 11135 | -6/Extension | Spotted B-75 Beast 11136 | -6/Extension | Spotted B-75 Beast 11389 | -6/Extension | Allies destroyed B-75 Beast 11426 | -6/Extension | Destroyed B-75 Beast 11446 | -6/Extension | Lost 3 allies 11536 | -6/Extension | Rescued A7 11686 | -6/Extension | Lost 4 allies 11767 | -6/Extension | Discovered new exit (range 6) 11778 | -6/Extension | Found Hvy. Reflective Plating 11780 | -6/Extension | Identified exit to Cetus 11785 | -6/Extension | Entered Cetus 11785 | -6/Cetus | Accompanied by 4 allies (A7) 11790 | -6/Cetus | Acquired a Cetus Manufacturing Module code from A7 11800 | -6/Cetus | Spotted Cetus Guard 11800 | -6/Cetus | Spotted Cetus Guard 11803 | -6/Cetus | Spotted Cetus Guard 11811 | -6/Cetus | Spotted Cetus Guard 11818 | -6/Cetus | Allies destroyed Cetus Guard 11819 | -6/Cetus | Allies destroyed Cetus Guard 11827 | -6/Cetus | Allies destroyed Cetus Guard 11833 | -6/Cetus | Allies destroyed Cetus Guard 11856 | -6/Cetus | Started Cetus Manufacturing Module 11881 | -6/Cetus | Manufactured an Enhanced Grunt 11887 | -6/Cetus | Escorted A7 to Cetus Mainframe 11906 | -6/Cetus | Manufactured an Enhanced Grunt 11914 | -6/Cetus | Discovered new exit (range 21) 11931 | -6/Cetus | Manufactured an Enhanced Grunt 11935 | -6/Cetus | Spotted Cetus Guard 11939 | -6/Cetus | Spotted Cetus Guard 11939 | -6/Cetus | Spotted Cetus Guard 11943 | -6/Cetus | Spotted Cetus Guard 11950 | -6/Cetus | Allies destroyed Cetus Guard 11955 | -6/Cetus | Discovered exit to Factory (range 22) 11956 | -6/Cetus | Manufactured an Enhanced Grunt 11959 | -6/Cetus | Allies destroyed Cetus Guard 11969 | -6/Cetus | Allies destroyed Cetus Guard 11977 | -6/Cetus | Allies destroyed Cetus Guard 11981 | -6/Cetus | Manufactured an Enhanced Grunt 11990 | -6/Cetus | Attached CPS modules to A7. 11993 | -6/Cetus | Murdered A7 11994 | -6/Cetus | Found Prototype Protection 11994 | -6/Cetus | Identified Med. Regenerative Plating 11998 | -6/Cetus | Extracted ID and sensor layout for unrecognized location from A7's data core 12018 | -6/Cetus | Met Revision 17 12040 | -6/Cetus | Identified exit to Archives 12190 | -6/Cetus | Entered Archives 12190 | -6/Archives | Accompanied by 7 allies 12191 | -6/Archives | Identified exit to Hub_04(d) 12207 | -6/Archives | Build established: Commander-Scout 12567 | -6/Archives | Entered Factory 12567 | -5/Factory | Accompanied by 6 allies 12567 | -5/Factory | Evolved 2 slots: Power x1, Utility x1 12579 | -5/Factory | Identified exit to Upper Caves 12623 | -5/Factory | Spotted B-75 Beast 12630 | -5/Factory | Allies destroyed B-75 Beast 12696 | -5/Factory | Discovered new exit (range 21) 12828 | -5/Factory | Loaded intel: 8 recycling unit locations 12881 | -5/Factory | Build established: Scavenger-Scout 12906 | -5/Factory | Discovered new exit (range 5) 13475 | -5/Factory | Discovered new exit (range 5) 13767 | -5/Factory | First assault squad dispatched 13936 | -5/Factory | Garrison activated, responded to threat 14090 | -5/Factory | Fabricated Imp. System Restoration Module (x2) 14155 | -5/Factory | Sucked down chute 14155 | -5/Factory | Entered Waste 14156 | -5/Waste | Joined by Warlord forces that had cleared the area 14443 | -5/Waste | Discovered new exit (range 12) 14450 | -5/Waste | Identified exit to Factory 14494 | -5/Waste | Entered Factory 14494 | -5/Factory | Accompanied by 20 allies 14555 | -5/Factory | Loaded intel: 8 recycling unit locations 14673 | -5/Factory | Discovered new exit (range 18) 14686 | -5/Factory | Identified exit to Factory 14704 | -5/Factory | Lost 7 allies 14781 | -5/Factory | Garrison activated, responded to threat 14794 | -5/Factory | First assault squad dispatched 14914 | -5/Factory | Lost 4 allies 15046 | -5/Factory | Discovered exit to Upper Caves (range 7) 15314 | -5/Factory | Discovered exit to Factory (range 10) 15379 | -5/Factory | Discovered exit to Factory (range 17) 15456 | -5/Factory | Build established: Scout 15584 | -5/Factory | Entered Upper Caves 15953 | -5/Upper Caves | Learned location of 1 exit from Factory 15993 | -5/Upper Caves | Build established: Trapper-Scout 16007 | -5/Upper Caves | Discovered new exit (range 21) 16013 | -5/Upper Caves | Identified exit to Upper Caves 16129 | -5/Upper Caves | Attracted the attention of an 0b10 outpost 16202 | -5/Upper Caves | Entered another Upper Caves area 16403 | -5/Upper Caves | Discovered exit to Factory (range 5) 16441 | -5/Upper Caves | Build established: Trapper-Mutant 16520 | -5/Upper Caves | Discovered new exit (range 6) 16525 | -5/Upper Caves | Identified exit to Zhirov 16552 | -5/Upper Caves | Entered Zhirov 16552 | -5/Zhirov | Discovered new exit (range 3) 16560 | -5/Zhirov | Met Zhirov 16571 | -5/Zhirov | Zhirov requested help retrieving the SGEMP Prototype 16577 | -5/Zhirov | Found Alien Artifact 16577 | -5/Zhirov | Identified Integrated Reactor 16577 | -5/Zhirov | Installed Integrated Reactor, increased core energy generation (+10) 16583 | -5/Zhirov | Found Alien Artifact 16650 | -5/Zhirov | Identified exit to Proximity Caves 16651 | -5/Zhirov | Entered Proximity Caves 16652 | -4/Proximity Caves | Forged Quantum Companion 16746 | -4/Proximity Caves | Learned Research emergency access door positions 16794 | -4/Proximity Caves | Activated DRS Beacon 16931 | -4/Proximity Caves | Discovered exit to Factory (range 5) 16989 | -4/Proximity Caves | Learned Factory security intel 16989 | -4/Proximity Caves | Learned Research trap positions 16989 | -4/Proximity Caves | Learned Factory terminal intel 17136 | -4/Proximity Caves | Lost 3 allies 17192 | -4/Proximity Caves | Entered Factory 17192 | -4/Factory | Evolved 2 slots: Propulsion x1, Utility x1 17193 | -4/Factory | Identified exit to Upper Caves 17193 | -4/Factory | Identified exit to Armory 17194 | -4/Factory | Identified exit to Research 17196 | -4/Factory | Loaded intel: 24 terminal locations 17314 | -4/Factory | Identified Transdimensional Reconstructor 17354 | -4/Factory | Build established: Scavenger-Mutant 17584 | -4/Factory | Discovered exit to Research (range 14) 17629 | -4/Factory | Sucked down chute 17629 | -4/Factory | Entered Waste 17639 | -4/Waste | Spotted C-40 Crusher 17644 | -4/Waste | EMP discharged 17644 | -4/Waste | System corruption reached 10% 17645 | -4/Waste | Spotted C-40 Crusher 17650 | -4/Waste | Spotted C-40 Crusher 17653 | -4/Waste | Spotted C-40 Crusher 17654 | -4/Waste | Destroyed C-40 Crusher 17657 | -4/Waste | Discovered new exit (range 22) 17660 | -4/Waste | Spotted C-40 Crusher 17662 | -4/Waste | Spotted C-40 Crusher 17672 | -4/Waste | Identified exit to Factory 17674 | -4/Waste | Found Corrupted Fusion Bomb Launcher 17676 | -4/Waste | Entered Factory 17697 | -4/Factory | Loaded intel: 8 recycling unit locations 17870 | -4/Factory | Lost 3 parts (2n1w) 17963 | -4/Factory | Noticed a derelict Sapper rigging charges 18042 | -4/Factory | Crushed by falling debris 18088 | -4/Factory | Discovered exit to Research (range 5) 18103 | -4/Factory | Lost 4 parts (2n2u) 18165 | -4/Factory | Fabricated Cmb. Linear Gravjet (x2) 18262 | -4/Factory | Discovered exit to Research (range 15) 18606 | -4/Factory | Repaired Cmb. Linear Gravjet 18801 | -4/Factory | Spotted B-86 Titan 18802 | -4/Factory | Build established: Hacker-Mutant 18866 | -4/Factory | Fabricated Imp. System Restoration Module (x2) 18956 | -4/Factory | Discovered exit to Research (range 22) 19262 | -4/Factory | Build established: Trapper-Mutant 19489 | -4/Factory | Scrapoid reinforcements arrived 19563 | -4/Factory | Repaired Broken Cmb. Linear Gravjet 19581 | -4/Factory | Central database locked down 19597 | -4/Factory | Discovered exit to Upper Caves (range 13) 19787 | -4/Factory | Entered Armory 19787 | -4/Armory | Accompanied by 1 ally 19903 | -4/Armory | Build established: Scientist-Scout 20142 | -4/Armory | Loaded intel: 2 recycling unit locations 20206 | -4/Armory | Energy Cycler disabled 20206 | -4/Armory | Core integrity fell below 50% 20244 | -4/Armory | Warped through subspace to slip node 20244 | -4/Armory | Discovered new exit (range 1) 20244 | -4/Armory | Identified exit to Lab 20273 | -4/Armory | Lost 9 parts (2p4n2u1w) 20273 | -4/Armory | Found Fusion Bomb Launcher 20288 | -4/Armory | Found Adv. Force Booster 20291 | -4/Armory | Found Adv. Force Booster 20344 | -4/Armory | Spotted Armor Guard 20769 | -4/Armory | Build established: Scavenger-Mutant 20818 | -4/Armory | Entered Lab 20822 | -4/Lab | Discovered exit to Research (range 9) 20827 | -4/Lab | Hidden lab's door opened automatically 20827 | -4/Lab | Sensor layout match revealed 20828 | -4/Lab | Gained access to the hidden lab's interior 20912 | -4/Lab | Found Alien Artifact 20917 | -4/Lab | Found Alien Artifact 20917 | -4/Lab | Identified Integrated Mediator 20917 | -4/Lab | Installed Integrated Mediator, increased core attachment efficiency 20960 | -4/Lab | Found Prototype Hackware 20993 | -4/Lab | Found Prototype Device 21162 | -4/Lab | Found Prototype Energy Cannon 21162 | -4/Lab | Identified Warp Cannon 21338 | -4/Lab | Identified AEGIS Remote Shield 22564 | -4/Lab | Found Alien Artifact 22576 | -4/Lab | Found Prototype Special Weapon 22598 | -4/Lab | Found Transdimensional Reconstructor 22631 | -4/Lab | Identified Core Reset Matrix 22631 | -4/Lab | Identified Core Expander 22631 | -4/Lab | Used Core Reset Matrix 22635 | -4/Lab | Installed Core Expander, added new Power slot 22642 | -4/Lab | Identified Gui. Remote Datajack 22650 | -4/Lab | Entered Research 22650 | -3/Research | Evolved 2 slots: Propulsion x1, Utility x1 22705 | -3/Research | Identified Deep Network Scanner 22707 | -3/Research | Loaded intel: 5 recycling unit locations 22749 | -3/Research | Discovered new exit (range 11) 22753 | -3/Research | Identified exit to Quarantine 22754 | -3/Research | Identified exit to Research 22793 | -3/Research | Lost 3 parts (3n) 22850 | -3/Research | Revision forces began assault on 0b10 22971 | -3/Research | Spotted B-86 Titan 23056 | -3/Research | Build established: Hacker-Ninja 23092 | -3/Research | Deep Network Scanner fried by hacking feedback 23124 | -3/Research | Central database locked down 23138 | -3/Research | Met up with Revision 17++ 23248 | -3/Research | Spotted B-86 Titan 23305 | -3/Research | Destroyed B-86 Titan 23312 | -3/Research | Lost 3 allies 23337 | -3/Research | Spotted B-90 Cyclops 23350 | -3/Research | Research terminal network offline 23364 | -3/Research | Build established: Alien-Scout 23395 | -3/Research | Destroyed B-90 Cyclops 23430 | -3/Research | Found Unknown Launcher 23430 | -3/Research | Identified Gamma Bomb Array 23594 | -3/Research | Discovered exit to Research (range 21) 23701 | -3/Research | Fabricated CPS Tube? 23892 | -3/Research | Fabricated CPS Tube (x1) 24006 | -3/Research | Build established: Scavenger-Mutant 24028 | -3/Research | Spotted B-86 Titan 24155 | -3/Research | Spotted Striker 24177 | -3/Research | Spotted Striker 24177 | -3/Research | Warped through subspace 24485 | -3/Research | Entered Quarantine 24486 | -3/Quarantine | Detected hypermatrix surge 24486 | -3/Quarantine | Sensed 10 artifacts in vicinity 24503 | -3/Quarantine | Cryocooling Duct disabled 24506 | -3/Quarantine | Cryocooling Duct disabled 24518 | -3/Quarantine | Ambient heat levels rising (+20) 24518 | -3/Quarantine | Non-combat units ordered to evacuate 24521 | -3/Quarantine | Ambient heat levels rising (+20) 24521 | -3/Quarantine | Combat units ordered to evacuate 24563 | -3/Quarantine | Build established: Scavenger-Ninja 24586 | -3/Quarantine | Found Prototype Device 24586 | -3/Quarantine | Identified Exp. Thermal Shield 24621 | -3/Quarantine | Quarantine Guard activated 24657 | -3/Quarantine | Spotted Quarantine Guard 24737 | -3/Quarantine | Destroyed Quarantine Guard 24878 | -3/Quarantine | Spotted Quarantine Guard 24924 | -3/Quarantine | Destroyed Quarantine Guard 24969 | -3/Quarantine | Spotted Quarantine Guard 24991 | -3/Quarantine | Rewired Quarantine Guard 25063 | -3/Quarantine | Spotted Quarantine Guard 25073 | -3/Quarantine | Destroyed Quarantine Guard 25078 | -3/Quarantine | Spotted Quarantine Guard 25078 | -3/Quarantine | Spotted Quarantine Guard 25121 | -3/Quarantine | Build established: Scavenger-Gladiator 25127 | -3/Quarantine | Destroyed Quarantine Guard 25132 | -3/Quarantine | Allies destroyed Quarantine Guard 25285 | -3/Quarantine | Spotted Quarantine Guard 25303 | -3/Quarantine | Destroyed Quarantine Guard 25308 | -3/Quarantine | Spotted Quarantine Guard 25317 | -3/Quarantine | Destroyed Quarantine Guard 25430 | -3/Quarantine | Discovered exit to Research (range 11) 25430 | -3/Quarantine | Spotted Quarantine Guard 25448 | -3/Quarantine | Destroyed Quarantine Guard 25466 | -3/Quarantine | Found Subatomic Replicator 25468 | -3/Quarantine | Forged Prototype Slashing Weapon 25475 | -3/Quarantine | Spotted Quarantine Guard 25492 | -3/Quarantine | Rewired Quarantine Guard 25539 | -3/Quarantine | Build established: Alien-Gladiator 25876 | -3/Quarantine | Spotted Fortress 25910 | -3/Quarantine | Destroyed Fortress 26103 | -3/Quarantine | Found Exp. Thermal Shield 26287 | -3/Quarantine | Met incapacitated Sigix Warrior 26287 | -3/Quarantine | Lockdown squad dispatched 26289 | -3/Quarantine | Acquired the access code to the Sigix quarantine chamber 26290 | -3/Quarantine | Unlocked Sigix quarantine chamber 26292 | -3/Quarantine | Found Sigix Containment Pod 26308 | -3/Quarantine | Cryocooling Duct disabled 26323 | -3/Quarantine | Ambient heat levels rising (+20) 26371 | -3/Quarantine | Spotted Lightning 26522 | -3/Quarantine | Cryocooling Duct disabled 26537 | -3/Quarantine | Ambient heat levels rising (+20) 26981 | -3/Quarantine | Found Core Cannon 27053 | -3/Quarantine | Found Terrabomb 27407 | -3/Quarantine | Build established: Scientist-Assassin 27521 | -3/Quarantine | Discovered new exit (range 6) 27521 | -3/Quarantine | Discovered new exit (range 6) 27521 | -3/Quarantine | Spotted Quarantine Guard 27521 | -3/Quarantine | Spotted Quarantine Guard 27531 | -3/Quarantine | Entered Protoforge 27532 | -3/Protoforge | Sensed 2 artifacts in vicinity 27587 | -3/Protoforge | Spotted B-86 Titan 27589 | -3/Protoforge | Spotted Hotshot 27782 | -3/Protoforge | Spotted EXE-6 27782 | -3/Protoforge | Spotted EXE-6 27785 | -3/Protoforge | Superfortress began startup sequence 27785 | -3/Protoforge | Spotted Decapitator 27785 | -3/Protoforge | Spotted Decapitator 27786 | -3/Protoforge | Destroyed EXE-6 27794 | -3/Protoforge | Destroyed EXE-6 27796 | -3/Protoforge | Found Corrupted Prototype Ballistic Gun 27822 | -3/Protoforge | Spotted AP7-3 27839 | -3/Protoforge | Build established: Scientist-Ninja 27841 | -3/Protoforge | Core integrity fell below 50% 27902 | -3/Protoforge | Found Prototype Device 27902 | -3/Protoforge | Identified Exp. Trap Extractor 27911 | -3/Protoforge | Found Prototype Storage 27912 | -3/Protoforge | Identified Cep. Chromion Battery 27957 | -3/Protoforge | Spotted Immortal 27957 | -3/Protoforge | Spotted Immortal 27971 | -3/Protoforge | Found Prototype Device 28006 | -3/Protoforge | Identified Cep. XC Strikerail 28026 | -3/Protoforge | Spotted Immortal 28026 | -3/Protoforge | Spotted Immortal 28083 | -3/Protoforge | Destroyed Immortal 28091 | -3/Protoforge | Destroyed Immortal 28148 | -3/Protoforge | Destroyed 14 combat bots 28162 | -3/Protoforge | Forge Plexus network access discovered 28277 | -3/Protoforge | Found Cep. NT7 Matterbank 28280 | -3/Protoforge | Spotted V125-c 28281 | -3/Protoforge | Found Cep. Antigrav Storage Unit 28281 | -3/Protoforge | Spotted V006-x 28282 | -3/Protoforge | Spotted V943-s 28295 | -3/Protoforge | Spotted V178-r 28348 | -3/Protoforge | Destroyed V178-r 28352 | -3/Protoforge | Destroyed V943-s 28361 | -3/Protoforge | Found Cep. Combat Aerolev Unit 28368 | -3/Protoforge | Found Unknown Protection 28368 | -3/Protoforge | Identified Adv. Powered Armor 28391 | -3/Protoforge | Build established: Scavenger-Gladiator 28423 | -3/Protoforge | Spotted V344-d 28433 | -3/Protoforge | Spotted V858-d 28434 | -3/Protoforge | Spotted Decapitator 28435 | -3/Protoforge | Spotted Decapitator 28444 | -3/Protoforge | Core integrity fell below 20% 28446 | -3/Protoforge | Destroyed Decapitator 28449 | -3/Protoforge | Spotted Decapitator 28451 | -3/Protoforge | Destroyed Decapitator 28455 | -3/Protoforge | Destroyed V344-d 28459 | -3/Protoforge | Destroyed V858-d 28461 | -3/Protoforge | Found Prototype Device 28461 | -3/Protoforge | Identified Cep. Antimissile System 28468 | -3/Protoforge | Found Prototype Processor 28468 | -3/Protoforge | Identified Spectral Analyzer 28473 | -3/Protoforge | Found Prototype Launcher 28473 | -3/Protoforge | Identified Ragnarok Missile Launcher 28476 | -3/Protoforge | Found Prototype Processor 28476 | -3/Protoforge | Identified Exp. Target Analyzer 28480 | -3/Protoforge | Found Prototype Launcher 28480 | -3/Protoforge | Identified Cep. Concussive Dispersal Blaster 28482 | -3/Protoforge | Lost 4 parts (2p1n1u) 28483 | -3/Protoforge | Found Prototype Processor 28483 | -3/Protoforge | Identified Exp. Armor Integrity Analyzer 28490 | -3/Protoforge | Found Prototype Processor 28490 | -3/Protoforge | Identified Exp. Core Analyzer 28501 | -3/Protoforge | Found Faulty Cep. Smart ZDS 28503 | -3/Protoforge | Found Faulty Cep. Smart ZDS 28504 | -3/Protoforge | Identified Crosscalibrator 28508 | -3/Protoforge | Found Cep. Rapid Grenade Launcher 28527 | -3/Protoforge | Found Cep. Antimissile System 28544 | -3/Protoforge | System corruption reached 10% 28582 | -3/Protoforge | Spotted V355-p 28582 | -3/Protoforge | Spotted V330-u 28593 | -3/Protoforge | Found Femtoactuators 28596 | -3/Protoforge | Found Cep. Weapon Articulator 28600 | -3/Protoforge | Found Cep. Networked Targeting System 28601 | -3/Protoforge | Spotted V498-v 28602 | -3/Protoforge | Found Cep. Melee Reflex Suite 28676 | -3/Protoforge | Spotted EXE-6 28676 | -3/Protoforge | Spotted EXE-6 28702 | -3/Protoforge | Destroyed Decapitator 28705 | -3/Protoforge | Destroyed Decapitator 28724 | -3/Protoforge | UFD initiated attack on Protoforge (Readiness: Maximal) 28724 | -3/Protoforge | Loaded intel: 3 recycling unit locations 28759 | -3/Protoforge | Found Cep. XC Strikerail 28760 | -3/Protoforge | Optimus greeted in Protoforge 28763 | -3/Protoforge | Found Exp. Kinecellerator 28765 | -3/Protoforge | Found Cep. XC Strikerail 28783 | -3/Protoforge | Lost 6 allies 28810 | -3/Protoforge | Found UFD Drillbomb 28828 | -3/Protoforge | Found UFD Drillbomb 28868 | -3/Protoforge | Met 7R-MNS 28896 | -3/Protoforge | Spotted AP7-3 28964 | -3/Protoforge | Lost 10 allies 29039 | -3/Protoforge | Lost 6 allies 29056 | -3/Protoforge | Build established: Scavenger-Mutant 29056 | -3/Protoforge | Destroyed 9 combat bots 29060 | -3/Protoforge | Destroyed Hotshot 29060 | -3/Protoforge | Destroyed Executioner 29088 | -3/Protoforge | Spotted Hotshot 29104 | -3/Protoforge | Spotted Striker 29123 | -3/Protoforge | UFD reported confirmed Drillbomb installation 29180 | -3/Protoforge | Lost 4 allies 29219 | -3/Protoforge | Installed UFD Drillbomb at designated target 29219 | -3/Protoforge | UFD reported confirmed Drillbomb installation 29222 | -3/Protoforge | Spotted Striker 29225 | -3/Protoforge | Spotted Striker 29237 | -3/Protoforge | Spotted Hotshot 29259 | -3/Protoforge | Spotted Striker 29270 | -3/Protoforge | Destroyed Striker 29295 | -3/Protoforge | Lost 8 allies 29324 | -3/Protoforge | Spotted Executioner 29328 | -3/Protoforge | Spotted Executioner 29329 | -3/Protoforge | UFD reported confirmed Drillbomb installation 29331 | -3/Protoforge | Destroyed Executioner 29331 | -3/Protoforge | Destroyed Executioner 29368 | -3/Protoforge | Lost 5 allies 29407 | -3/Protoforge | UFD reported confirmed Drillbomb installation 29420 | -3/Protoforge | Spotted Striker 29421 | -3/Protoforge | Spotted Striker 29422 | -3/Protoforge | Spotted Striker 29425 | -3/Protoforge | Spotted Striker 29429 | -3/Protoforge | Destroyed Striker 29431 | -3/Protoforge | Destroyed Striker 29462 | -3/Protoforge | Destroyed 8 combat bots 29485 | -3/Protoforge | Spotted Striker 29494 | -3/Protoforge | Spotted Striker 29494 | -3/Protoforge | Destroyed B-86 Titan 29541 | -3/Protoforge | Installed UFD Drillbomb at designated target 29541 | -3/Protoforge | UFD reported confirmed Drillbomb installation 29578 | -3/Protoforge | Found UFD Drillbomb 29590 | -3/Protoforge | Lost 4 allies 29601 | -3/Protoforge | Found UFD Drillbomb 29751 | -3/Protoforge | Lost 3 allies 29847 | -3/Protoforge | UFD reported confirmed Drillbomb installation 29860 | -3/Protoforge | Spotted Striker 29871 | -3/Protoforge | Spotted Executioner 29880 | -3/Protoforge | Spotted Striker 29898 | -3/Protoforge | Spotted Striker 29900 | -3/Protoforge | Spotted Striker 29932 | -3/Protoforge | Spotted Striker 29932 | -3/Protoforge | Spotted Executioner 29933 | -3/Protoforge | Lost 4 allies 29956 | -3/Protoforge | Spotted Executioner 29980 | -3/Protoforge | Spotted Striker 29984 | -3/Protoforge | Spotted Striker 29985 | -3/Protoforge | Destroyed Striker 29987 | -3/Protoforge | Destroyed Striker 29987 | -3/Protoforge | Spotted Executioner 29989 | -3/Protoforge | Spotted Striker 30052 | -3/Protoforge | Lost 4 allies 30055 | -3/Protoforge | Found Prototype Processor 30056 | -3/Protoforge | Identified Exp. Targeting Computer 30172 | -3/Protoforge | Spotted Striker 30177 | -3/Protoforge | Spotted Striker 30178 | -3/Protoforge | Destroyed Striker 30200 | -3/Protoforge | Spotted Executioner 30200 | -3/Protoforge | Destroyed Executioner 30201 | -3/Protoforge | Spotted Executioner 30204 | -3/Protoforge | Spotted Striker 30243 | -3/Protoforge | Spotted Striker 30254 | -3/Protoforge | Lost 9 allies 30335 | -3/Protoforge | Spotted Executioner 30338 | -3/Protoforge | Destroyed Executioner 30367 | -3/Protoforge | Found Exp. System Purifier 30373 | -3/Protoforge | Lost 3 allies 30388 | -3/Protoforge | Spotted Executioner 30388 | -3/Protoforge | Spotted Striker 30388 | -3/Protoforge | Spotted Executioner 30407 | -3/Protoforge | Spotted Striker 30417 | -3/Protoforge | Spotted Striker 30422 | -3/Protoforge | Destroyed Executioner 30454 | -3/Protoforge | Destroyed 9 combat bots 30472 | -3/Protoforge | Lost 6 allies 30496 | -3/Protoforge | Destroyed Striker 30498 | -3/Protoforge | Destroyed Executioner 30513 | -3/Protoforge | Spotted Executioner 30513 | -3/Protoforge | Spotted Executioner 30524 | -3/Protoforge | Destroyed Executioner 30528 | -3/Protoforge | Destroyed Executioner 30549 | -3/Protoforge | Destroyed 20 combat bots 30558 | -3/Protoforge | Lost 3 allies 30583 | -3/Protoforge | Spotted Striker 30583 | -3/Protoforge | Spotted Striker 30597 | -3/Protoforge | Spotted Executioner 30597 | -3/Protoforge | Spotted Striker 30606 | -3/Protoforge | Spotted Executioner 30609 | -3/Protoforge | Spotted Striker 30631 | -3/Protoforge | Destroyed Executioner 30658 | -3/Protoforge | Lost 8 allies 30658 | -3/Protoforge | Installed UFD Drillbomb at designated target 30658 | -3/Protoforge | UFD reported confirmed Drillbomb installation 30661 | -3/Protoforge | Found UFD Drillbomb 30682 | -3/Protoforge | Spotted Executioner 30683 | -3/Protoforge | Spotted Executioner 30683 | -3/Protoforge | Spotted Executioner 30684 | -3/Protoforge | Destroyed Executioner 30687 | -3/Protoforge | Destroyed Executioner 30688 | -3/Protoforge | Discovered exit to Research (range 6) 30699 | -3/Protoforge | Destroyed Striker 30699 | -3/Protoforge | Destroyed Striker 30705 | -3/Protoforge | Destroyed by 99-46O(E) with Overtuned Coil Gun Last Messages --------------- 30699_ C-45 Heavy ARC bursts open, deploying its payload. 30699_ G-67 Veteran unfolds itself. 30699_ L-61 Swordsman unfolds itself. 30699_ H-77 Assassin unfolds itself. 30699_ L-61 Swordsman unfolds itself. 30699_ G-67 Veteran knocked back. 30700_ The unstable cave ceiling collapses. 30701_ H-77 Assassin destroyed. 30703_ ALERT: Hostile activity reported, dispatching reinforcements to area. 30703_ G-67 Veteran destroyed. 30703_ Slug penetrates G-67 Veteran. 30703_ Destroyed Flexi-carbon Leg. 30703_ Destroyed Plasma Rifle. 30703_ Destroyed Lgt. Antimatter Reactor. 30703_ G-67 Veteran destroyed. 30703_ Destroyed Flexi-carbon Leg. 30704_ Slug penetrates Earth. 30705_ Penetrated by Slug. Map ----- +----------------------------------------------------+ | ???????????????????????????????## ##?########?## | | ???????????????????????????????## ##???????????? | | ???????????????????????????????## ##???????????? | | ???????????????????????????????## ##???????????? | | ???????????????????????????????## ##???????????? | | ???????????????######??????????## ##?????######? | | ????#######????######??????????## #############? | | ????#############??############## ### # # #T"### | | ????##???########T #############" !!]!!""#""" "## | | ????##?% % !*%=] ! | | ????##???### !! /%% | | ??#####?#### !!|! | | ??#####?##############;#########[]%!!;; ###"## | | ??##????############## ###### #% =%!! # | | ??##????#############;;####### "!!=!= != # | | ??##?? ### ## # ! %[ & | | ??##???? # =[ ### # ! & # # | | ??##????##; [; m! % ### # # | | ??##????### g =%*!! ## ## # # | | ??##????### g [![%* % % # "" | | ??##????#### %g s!%! # ####+#"" | | ??##+##+##;; ! % SS # ## # ##" | | ??## %[ %l[SS # # ###""#####" ### | | ??## """ %*%[%== s ;; ### ###;;###### ##" | | ??## #%=%=# % !;#### # " | | ??##????????#*[ ### # @ !#! # # | | ??## "%%! &[!=%=!#%### ### | | ??##?""" "!!! # =%%% *!### # | | ??## # ! !/=%[*m=!== # | | ??##????????# # E E E =*%=%![ % | | ??##????????######;; # E !![*%![ % | | ??################ ; # A![%[%= % | | ??############???##; # #!!/ " % | | ??????????????????##m ; # = = # | | ??????????????????## # # ! " | | ???#??????????????## # ;# #% | | ??????????????????## ###;######;#### # | | ?????#????????????## ###############""" # | | ??????????????????## "#########????##""" | | ???#?????????????### "%#########????##""" # | | ??????#??????????### " ????##????##""" " | | ?#??#????#?#?#??#?## ????##????##""" " | | ????#????#?#??????## ???# ???##""" " | | ??????????????????## ??# ?##""" # | | ????#???##????#??######## " % ## %= # " | | ???##?#????#?#############" !"%=* " " | | ????#??#??#?##########???#" [%[%![ """"!!!=""%%% | | ??????#?##???##???##?????## !%!=! !|]%= | | ###############? ####### " !=%%/ ! %% | | ############### #######=" %%!* %%% %% " % % | +----------------------------------------------------+ Best States ------------- Heat Dissipation 98 Coolant Potential 120 Energy Generation 80 Energy Capacity 1200 Matter Stores 1050 Matter Capacity 1050 Sight Range 24 Robot Scan Range 20 Terrain Scan Range 24 Terrain Scan Density 210 ECM Strength 2 Jamming Range 16 Cloak Strength 4 Power Amplification 40 Additional Mass Support 16 Base Temperature (-) 200 EM Shielding 4 Corruption Block 20 Armor Coverage 600 Resistance: KI 25 Resistance: TH 25 Resistance: EM 20 Utility Shielding 90 Melee Speed Boost 50 Phase Shifting 10 Evasion (%) 71 Targeting Accuracy 20 Melee Accuracy 8 Launcher Accuracy 30 Core Analysis 8 Armor Integrity Analysis 50 Matter Filtering 50 Energy Filtering 50 Force Boost 40 Offensive Hacking 39 Defensive Hacking 22 Authchip Count 3 Trap Extractor Capacity 6 Item Schematics ----------------- CPS Tube | -3/Research | Scanalyzed Triangulator | -3/Research | Extracted Helical Railgun | -3/Research | Extracted Imp. Power Shielding | -3/Research | Extracted Imp. Arc Projector | -3/Research | Extracted Enh. Multireflex Exoskeleton | -3/Quarantine | Archive Gravity Flail | -3/Quarantine | Archive Impact Mace | -3/Quarantine | Archive Exp. Myomer Leg | -3/Quarantine | Archive Exp. Energy Well | -3/Quarantine | Archive Enh. Biometal Leg | -3/Quarantine | Archive Hds. Centrium Wheel | -3/Quarantine | Archive Neutron Missile Launcher | -3/Quarantine | Archive Adv. Plasma Rifle | -3/Quarantine | Archive Diametric Drive | -3/Quarantine | Archive Com. Mass Driver | -3/Quarantine | Archive Mni. Fusion Reactor | -3/Quarantine | Archive Enh. Coil Gun | -3/Quarantine | Archive Imp. Energy Well | -3/Quarantine | Archive Centrium Greatsword | -3/Quarantine | Archive Robot Schematics ------------------ W-44 Eye | -3/Quarantine | Archive A-02 Transporter | -3/Quarantine | Archive M-30 Cleanser | -3/Quarantine | Archive M-36 Artificer | -3/Quarantine | Archive Fabricated ------------ Aerolev Unit | x1 | -6/Factory | Authchip E-15 Imp | x2 | -6/Factory | Preloaded Exp. Sensor Array | x1 | -6/Factory Imp. Hacking Suite | x1 | -6/Factory Imp. System Restoration Module | x2 | -6/Factory | Authchip Imp. System Restoration Module | x2 | -5/Factory Cmb. Linear Gravjet | x2 | -4/Factory | Preloaded Imp. System Restoration Module | x2 | -4/Factory CPS Tube | x1 | -3/Research CPS Tube | x1 | -3/Research Repaired ---------- Exp. Sensor Array | 17% | -6/Factory Cmb. Linear Gravjet | 16% | -4/Factory Cmb. Linear Gravjet | 95% | -4/Factory | Broken Studied --------- Antigrav Array | -3/Research | Hacked Cmb. Linear Gravjet | -3/Research | Hacked Cmb. Antigrav System | -3/Quarantine | Hacked Lgt. Antimatter Reactor | -3/Quarantine | Hacked Lgt. Particle Reactor | -3/Quarantine | Hacked Gyrokinetic Inverter | -3/Quarantine | Hacked Imp. Gyrokinetic Inverter | -3/Quarantine | Hacked Alien Tech Used ----------------- Integrated Reactor Transdimensional Reconstructor Integrated Mediator Core Reset Matrix Core Expander Subatomic Replicator Core Cannon Achievements -------------- Friends Forever UFD MVP Challenges ------------ None Game ------ Seed FissionGuidedBeam Manual? 0 Play Time 08:11:46 Cumulative 594.1 hours Start 2026.02.24 @ 20:46:09 End 2026.02.25 @ 04:59:52 Sessions 1 Manual Loads 0 Difficulty Rogue Special Mode None Game No. 197 Rogue 197 Adventurer 0 Explorer 0 Win Type - Total 20 Types 8/0/6/1/1/0/0/1/1/2 Lore% 91 Gallery% 85 Achievement% 77 Wizard Run 0 Options --------- Layout 1 ASCII 0 Keyboard 0 Movement Mouse Keybinds 0 Fullscreen 2 Font 32/SmallcapsGlow Map View 50x35 Zoom Use 0% Tactical HUD 1 Map Filters NONE Filters NONE Steam 1 RUN: bf0c38e4-3c1c-4b9b-b1c4-975b9851df44